Cogmind - Beta 14 @@@ ROGUE MODE // 2025.03.17 @ 19:44:05 Player: Cog on my mind Result: Escaped! Performance ------------- Evolutions (9) 4500 Regions Visited (31) 6200 Robots Destroyed (371) 1855 Value Destroyed (20765) 20765 Prototype IDs (73) 1460 Alien Tech Used (0) 0 Bonus (20243) 20243 TOTAL SCORE: 55023 Bonus ------- Triggered Max Security 1000 High Alert Combat Kills 2246 Follower Combat Kills 8399 Entered Garrisons 1400 Used RIF Installer 3500 Network Hubs Disabled 400 Aligned with FarCom 300 Built Enhanced Grunts 300 Met R17 at Cetus 500 Met R17 at Research 2000 Win 3000 Friendly Fire -2802 Cogmind --------- Core Integrity 1387/1600 Matter 177/300 Energy 204/240 System Corruption 10% Temperature Cool (98) Movement Hovering (49) Location To Epsilon Eridani Parts ------- > --- POWER (2) -------- Micro Antimatter Reactor Light Quantum Reactor > --- PROPULSION (8) --- Improved Antigrav System Combat Antigrav System Combat Antigrav System Combat Antigrav System Antigrav Array Combat Linear Gravjet Combat Linear Gravjet > --- UTILITY (13) ----- High-capacity Storage Unit Spectral Analyzer Advanced Terrain Scanner Beam Splitter Improved Hacking Suite Relay Coupler [Swarmer] (33) Relay Coupler [Grunt] (21) Relay Coupler [Grunt] (27) Relay Coupler [Grunt] (16) Relay Coupler [Duelist] (31) Relay Coupler [Hunter] (18) Relay Coupler [Hunter] (10) > --- WEAPON (2) ------- Linear Accelerator Advanced Remote Datajack > --- INVENTORY (20) --- Light Quantum Reactor Improved Antigrav System Experimental Energy Well (600) Advanced Matter Compressor (114) Stasis Canceller Hacking Suite Relay Coupler [Grunt] (35) Relay Coupler [Sentry] (22) Relay Coupler [Demolisher] (25) System Restoration Module Improved Remote Datajack Enhanced Force Lance Peak State ------------ > --- POWER ------------ Micro Antimatter Reactor Light Quantum Reactor > --- PROPULSION ------- Improved Antigrav System Improved Antigrav System Cooled Antigrav System Antigrav Array Antigrav Array Combat Linear Gravjet > --- UTILITY ---------- High-capacity Storage Unit Spectral Analyzer Advanced Terrain Scanner Advanced Terrain Scan Processor Experimental Melee Analysis Suite Beam Splitter Hacking Suite Improved Hacking Suite Improved Hacking Suite Relay Coupler [Swarmer] Relay Coupler [Grunt] Relay Coupler [Duelist] Relay Coupler [Hunter] > --- WEAPON ----------- Enhanced Force Lance Enhanced Force Lance > --- INVENTORY -------- Light Quantum Reactor Experimental Energy Well Advanced Matter Compressor Stasis Canceller Hacking Suite Relay Coupler [Grunt] Relay Coupler [Grunt] Relay Coupler [Grunt] Relay Coupler [Grunt] Relay Coupler [Sentry] Relay Coupler [Sentry] Relay Coupler [Demolisher] Relay Coupler [Hunter] System Restoration Module Linear Accelerator Guided Micro-nuke Launcher Improved Remote Datajack Advanced Remote Datajack [Rating: 172] Favorites ----------- Power Improved Ion Engine Engine Improved Ion Engine Power Core Enhanced Nuclear Core Reactor Particle Reactor Propulsion Enhanced Armored Heavy Treads Treads Enhanced Armored Heavy Treads Leg Potential Leg Wheel Armored Wheel Hover Unit Antigrav Array Utility High-capacity Storage Unit Device Improved Cooling System Storage High-capacity Storage Unit Processor Advanced Terrain Scan Processor Hackware Relay Coupler [Sentry] Protection Improved Medium Armor Plating Weapon Graviton Cannon Energy Gun Heavy EM Shotgun Energy Cannon Advanced Beam Cannon Ballistic Gun Assault Rifle Ballistic Cannon Graviton Cannon Launcher Missile Launcher Special Weapon Advanced Remote Datajack Slashing Weapon Centrium Greatsword Piercing Weapon Enhanced Force Lance Special Melee Weapon Datajack Build | -11 -10 -10 -9 -9 -9 -8 -8 -8 -8 -8 -7 -7 -7 -7 -6 -6 -5 -5 -5 -5 -5 -5 -5 -5 -4 -4 -4 -4 -3 -2 -1 ------- Run | Yrd Mat Min Mat Min Exi Min Mat Gar Mat Gar Fac Gar Fac Gar Fac Gar Fac Was Fac Gar Ext Cet Arc Hub Fac Was Fac Gar Res Res Acc Slots Evolved 18 | . . . 2 . . . 2 . . . 2 . . . 2 . 2 . . . . . . . 2 . . . 2 2 2 Power 1 | . . . . . . . . . . . . . . . . . . . . . . . . . 1 . . . . . . Propulsion 6 | . . . 1 . . . 1 . . . 1 . . . . . 1 . . . . . . . . . . . 2 . . Utility 11 | . . . 1 . . . 1 . . . 1 . . . 2 . 1 . . . . . . . 1 . . . . 2 2 Weapon . | . . . . . . . . . . . . . . . . . . . . . . . . . . . . . . . . Parts Attached 426 | 7 17 1 16 6 4 2 20 14 23 15 10 13 . 22 1 23 24 2 5 8 6 4 6 5 27 . 18 31 31 10 55 Power 37 | 1 3 . 3 . . . 1 2 . 1 2 . . 1 . . 1 . . . 1 2 1 . 2 . 3 4 1 1 7 Engine 11 | 1 3 . 3 . . . 1 1 . . 1 . . . . . . . . . . . . . . . . . . . 1 Core 5 | . . . . . . . . 1 . 1 1 . . 1 . . . . . . . 1 . . . . . . . . . Reactor 21 | . . . . . . . . . . . . . . . . . 1 . . . 1 1 1 . 2 . 3 4 1 1 6 Propulsion 77 | 2 4 . 5 . 1 . 4 6 5 1 3 1 . . . 4 7 . . . . 2 . . . . 2 7 12 2 9 Treads 38 | 2 4 . 5 . 1 . 4 5 5 1 . . . . . . 4 . . . . 2 . . . . 2 1 2 . . Leg 15 | . . . . . . . . . . . 3 1 . . . 4 3 . . . . . . . . . . 4 . . . Wheel 2 | . . . . . . . . 1 . . . . . . . . . . . . . . . . . . . . 1 . . Hover 22 | . . . . . . . . . . . . . . . . . . . . . . . . . . . . 2 9 2 9 Flight . | . . . . . . . . . . . . . . . . . . . . . . . . . . . . . . . . Utility 130 | 2 3 . 4 2 1 . 4 4 8 1 2 2 . 7 1 6 9 2 2 6 4 . 2 . 8 . 6 9 14 5 16 Device 25 | 1 1 . 1 1 . . 1 1 . . . 1 . . . . 3 1 . . . . . . 1 . 1 . 7 3 2 Storage 8 | 1 2 . . . 1 . . . . . . . . . . . 1 . . . 1 . . . . . . . 1 . 1 Processor 8 | . . . . . . . . . . . . . . . . . . . . . . . . . . . . 1 4 2 1 Hackware 64 | . . . . . . . 1 1 6 1 1 . . 6 1 5 4 . 2 6 1 . 2 . 5 . 2 6 2 . 12 Protection 25 | . . . 3 1 . . 2 2 2 . 1 1 . 1 . 1 1 1 . . 2 . . . 2 . 3 2 . . . Artifact . | . . . . . . . . . . . . . . . . . . . . . . . . . . . . . . . . Weapon 182 | 2 7 1 4 4 2 2 11 2 10 12 3 10 . 14 . 13 7 . 3 2 1 . 3 5 17 . 7 11 4 2 23 Energy Gun 17 | 1 1 . . . . . 3 . . . . 7 . 5 . . . . . . . . . . . . . . . . . Energy Cannon 11 | . 3 . 3 2 2 1 . . . . . . . . . . . . . . . . . . . . . . . . . Ballistic Gun 2 | 1 1 . . . . . . . . . . . . . . . . . . . . . . . . . . . . . . Ballistic Cannon 65 | . 1 . . . . . 6 1 5 5 2 2 . 3 . 8 4 . 1 1 1 . 1 3 7 . 4 5 . . 5 Launcher 33 | . 1 1 1 2 . 1 2 1 1 6 . 1 . 2 . 2 1 . 1 . . . . 1 1 . 1 2 . 1 4 Special Weapon 34 | . . . . . . . . . . . . . . 4 . 3 2 . 1 1 . . 1 1 9 . 2 4 2 . 4 Impact Weapon . | . . . . . . . . . . . . . . . . . . . . . . . . . . . . . . . . Slashing Weapon 7 | . . . . . . . . . . . . . . . . . . . . . . . 1 . . . . . 2 1 3 Piercing Weapon 7 | . . . . . . . . . . . . . . . . . . . . . . . . . . . . . . . 7 Special Melee Weapon 6 | . . . . . . . . . 4 1 1 . . . . . . . . . . . . . . . . . . . . Unidentified Prototypes 24 | . 1 . . . . . 2 . . . 2 . . . . . 5 1 . . 1 1 . . 1 . 2 2 2 3 1 Parts Lost 46 | . 2 1 1 . . . 4 4 1 1 1 . . 2 . 3 1 . . . . 1 . . 2 . 3 6 . . 13 Power 7 | . . . . . . . . 1 . 1 . . . . . . . . . . . 1 . . . . . . . . 4 Propulsion 13 | . . . . . . . 3 2 . . . . . . . 1 . . . . . . . . . . . 3 . . 4 Utility 21 | . 1 . 1 . . . 1 1 1 . . . . 2 . 2 1 . . . . . . . 2 . 3 2 . . 4 Weapon 5 | . 1 1 . . . . . . . . 1 . . . . . . . . . . . . . . . . 1 . . 1 Highest Loss Streak 3 | . 1 1 1 . . . 3 1 1 1 1 . . 1 . 1 1 . . . . 1 . . 1 . 2 3 . . 3 To Critical Strikes 1 | . . . . . . . . . . . . . . . . . . . . . . . . . . . . 1 . . . Average Slot Usage (%) 86 | . 96 100 99 100 77 100 97 94 99 99 78 83 84 82 73 76 76 76 76 82 80 81 81 81 81 78 82 70 84 82 90 Engine 2 | . 14 14 11 11 11 11 9 4 . . 2 . . . . . . . . . . . . . . . . . . . . Core 1 | . . . . . . . . 4 9 8 4 7 7 7 6 6 4 . . . . . . . . . . . . . . Reactor 3 | . . . . . . . . . . . . . . . . . . 5 5 5 5 3 4 5 9 10 10 7 8 8 7 Treads 16 | . 28 28 33 33 33 33 35 34 36 36 . . . . . . 3 17 17 17 17 17 17 17 15 15 15 8 . . . Leg 4 | . . . . . . . . . . . 22 22 23 23 20 19 16 . . . . . . . . . . 2 7 . . Hover 2 | . . . . . . . . . . . . . . . . . . . . . . . . . . . . 1 18 25 25 Device 4 | . 11 14 11 11 11 11 7 4 . . . 6 7 7 6 5 3 5 3 . . . . . . . . 2 1 5 5 Storage 7 | . 14 14 11 11 11 11 9 9 9 9 7 7 7 7 6 6 5 5 5 5 5 5 5 5 5 5 5 5 4 4 4 Hackware 22 | . . . . . . . 9 9 14 26 22 15 15 14 13 20 28 29 31 41 37 41 41 41 39 36 34 30 33 26 31 Protection 4 | . . . 10 11 11 11 8 9 11 . 2 7 7 7 6 4 . . . . 1 . . . . . 4 3 . . . Energy Cannon 3 | . 7 14 21 21 . 22 . . . . . . . . . . . . . . . . . . . . . . . . . Ballistic Cannon 6 | . 9 4 . . . . 12 17 16 14 12 2 . 5 6 5 6 5 5 5 5 5 9 10 7 5 7 3 . . 1 Special Weapon 1 | . . . . . . . . . . . . . . 5 6 5 4 5 5 4 5 5 . . 2 5 2 3 2 . . Peak Build Rating 172 | 7 13 13 20 21 24 24 34 47 46 45 68 69 68 69 73 79 131 126 127 127 127 125 128 128 143 136 145 139 142 161 172 Average Rating 83 | 5 9 13 18 20 17 23 32 40 41 39 61 67 68 67 68 72 92 125 125 122 121 123 125 127 136 135 140 105 125 153 163 On Entrance 77 | . 7 13 13 18 21 24 24 34 46 43 40 68 68 68 69 68 77 126 126 126 122 122 121 128 128 134 135 137 92 141 153 Naked Turns . | . . . . . . . . . . . . . . . . . . . . . . . . . . . . . . . . Heaviest Build 114 | 15 33 33 44 44 63 63 70 73 72 69 63 68 66 66 65 72 88 80 80 70 77 78 84 84 103 88 114 114 78 84 92 Greatest Support 240 | 40 46 46 66 60 63 63 86 88 85 82 98 98 98 98 80 100 240 240 240 240 240 240 240 240 240 240 240 230 102 102 116 Greatest Overweight (x) 27 | . . . . . . . . 5 . . . . . . . . 1 26 . . . . 27 . . . . 1 1 . . Average Overweight (x) . | . . . . . . . . . . . . . . . . . . 4 . . . . 6 . . . . . . . . Largest Inventory Capacity 20 | 8 15 15 15 15 20 20 20 20 20 20 20 20 20 20 20 20 20 20 20 20 20 20 20 20 20 20 20 20 20 20 20 Average Capacity 18 | 7 9 15 15 15 19 20 20 20 20 20 20 20 20 20 20 20 20 20 20 20 20 20 20 20 20 20 20 20 20 20 20 Most Carried 20 | . 13 13 15 15 19 18 20 20 20 20 20 20 20 20 19 20 20 20 20 20 20 20 20 20 20 20 20 20 20 20 20 Average Carried 17 | . 7 12 14 15 16 17 19 19 18 19 17 19 20 19 18 15 18 19 18 19 19 20 18 18 18 19 18 18 19 19 18 Final Capacity 20 | 8 15 15 15 15 20 20 20 20 20 20 20 20 20 20 20 20 20 20 20 20 20 20 20 20 20 20 20 20 20 20 20 Final Carried 20 | . 13 13 15 15 17 18 19 20 18 19 20 20 20 19 17 20 19 19 18 20 20 20 18 18 18 19 18 19 19 20 12 Class Distribution -------------------- 45% | Botlord-Mutant 16% | Bothacker-Mutant 14% | Scavenger-Mutant 11% | Mutant 7% | Botlord-Scout 4% | Commander-Mutant Dominant Class ---------------- Mutant | -10/Materials Mutant | -10/Mines Scavenger-Mutant | -9/Materials Scavenger-Mutant | -9/Mines Scavenger-Mutant | -9/Exiles Scavenger-Mutant | -8/Mines Scavenger-Mutant | -8/Materials Mutant | -8/Garrison Bothacker-Mutant | -8/Materials Bothacker-Mutant | -8/Garrison Bothacker-Mutant | -7/Factory Bothacker-Mutant | -7/Garrison Bothacker-Mutant | -7/Factory Botlord-Mutant | -7/Garrison Botlord-Mutant | -6/Factory Botlord-Mutant | -6/Garrison Botlord-Mutant | -5/Factory Botlord-Mutant | -5/Waste Botlord-Mutant | -5/Factory Botlord-Mutant | -5/Garrison Commander-Mutant | -5/Extension Botlord-Mutant | -5/Cetus Botlord-Mutant | -5/Archives Botlord-Mutant | -5/Hub_04(d) Botlord-Mutant | -4/Factory Botlord-Mutant | -4/Waste Botlord-Mutant | -4/Factory Botlord-Mutant | -4/Garrison Botlord-Mutant | -3/Research Botlord-Scout | -2/Research Botlord-Scout | -1/Access Resources | -11 -10 -10 -9 -9 -9 -8 -8 -8 -8 -8 -7 -7 -7 -7 -6 -6 -5 -5 -5 -5 -5 -5 -5 -5 -4 -4 -4 -4 -3 -2 -1 ----------- Run | Yrd Mat Min Mat Min Exi Min Mat Gar Mat Gar Fac Gar Fac Gar Fac Gar Fac Was Fac Gar Ext Cet Arc Hub Fac Was Fac Gar Res Res Acc Matter Collected 15757 | 300 382 85 281 118 20 80 624 656 749 466 534 564 . 582 13 883 1090 56 113 448 605 246 60 276 1705 194 1592 1558 342 125 1010 Remotely . | . . . . . . . . . . . . . . . . . . . . . . . . . . . . . . . . Salvage Created 12235 | 166 718 21 1774 237 . 162 954 658 297 327 204 698 . 330 . 42 65 . . . . 42 189 601 700 . 933 300 466 679 1672 Parts 699 | 12 44 . 104 17 . 16 59 43 16 22 12 37 . 25 . 9 1 . . . . 3 18 15 34 . 42 21 28 32 89 Haulers Intercepted 21 | . 2 . 5 . . . 2 . . . . . . . . . . . . . . . . . 1 . 1 . 4 3 3 Recyclers Shooed 9 | . 1 . 2 . . 1 . . . . 1 . . . . . . . . . . . . . . . 1 . 1 . 2 Parts Field Recycled . | . . . . . . . . . . . . . . . . . . . . . . . . . . . . . . . . Retrieved Matter . | . . . . . . . . . . . . . . . . . . . . . . . . . . . . . . . . Parts Self-Destructed . | . . . . . . . . . . . . . . . . . . . . . . . . . . . . . . . . Prevented . | . . . . . . . . . . . . . . . . . . . . . . . . . . . . . . . . Kills | -11 -10 -10 -9 -9 -9 -8 -8 -8 -8 -8 -7 -7 -7 -7 -6 -6 -5 -5 -5 -5 -5 -5 -5 -5 -4 -4 -4 -4 -3 -2 -1 ------- Run | Yrd Mat Min Mat Min Exi Min Mat Gar Mat Gar Fac Gar Fac Gar Fac Gar Fac Was Fac Gar Ext Cet Arc Hub Fac Was Fac Gar Res Res Acc Combat Hostiles Destroyed 287 | . 15 15 29 9 . 5 22 23 10 20 4 22 . 13 . 5 1 . . . . 1 . 7 17 . 20 15 . 8 26 Melee 8 | . . . . . . . . . . . . . . . . . . . . . . . . . . . . . . 3 5 Guns 21 | . 7 . . . . . 4 . . . . 10 . . . . . . . . . . . . . . . . . . . Cannons 133 | . 5 . 26 3 . 1 11 20 8 7 4 3 . 5 . . 1 . . . . 1 . 3 14 . 16 5 . . . AOE 123 | . 3 15 3 6 . 4 6 3 2 13 . 9 . 7 . 5 . . . . . . . 4 3 . 4 10 . 5 21 Classes Destroyed 20 | 2 5 1 5 . . 1 . 1 1 . 1 . . . . 1 . . . . . . . . . . . . . . 2 Worker 11 | . . . 2 . . 1 1 . . . . . . . . . . . . . . . . . 3 . . . . . 4 Builder 8 | . . . 2 . . . . . . . . . . . . . . . . . . . . . 1 . . . 2 . 3 Tunneler 10 | 4 1 . . . . . . . . . . . . . . . . . . . . . . . 1 . . . . . 4 Hauler 21 | . 2 . 5 . . . 2 . . . . . . . . . . . . . . . . . 1 . 1 . 4 3 3 Recycler 11 | 1 . . 1 1 . 1 1 . 1 . 1 . . . . . . . . . . . . 1 . . 2 . . . 1 Mechanic 1 | . . . . . . . . . . . . . . . . . . . . . . . . . . . . . . . 1 Operator 13 | . 2 . 2 . . . . . . . . . . . . 1 . . . . . . 5 . . . . . 1 2 . Drone 1 | . . . . . . . . . . . . . . . . . . . . . . . . . . . . . . . 1 Watcher 17 | . 3 . 5 . . . 2 . . . . . . . . . . . . . . . . 1 . . 2 . . 1 3 Swarmer 90 | . 3 . 3 6 . 4 3 7 4 8 . 10 . 7 . 2 . . . . . . . . 3 . 5 6 . 5 14 Cutter 5 | . . . . . . . . 1 . . . . . . . . . . . . . . . . . . . 4 . . . Saboteur 3 | . . . . . . . . . . . . . . . . 3 . . . . . . . . . . . . . . . Grunt 91 | . 12 . 15 3 . . 13 9 3 5 2 8 . . . . . . . . . 1 . 3 2 . 6 . . 2 7 Brawler 2 | . . . 1 . . . . . . . . . . . . . . . . . . . . 1 . . . . . . . Duelist 6 | . . . 1 . . . 1 . . 2 . . . 1 . . . . . . . . . . . . . . . . 1 Sentry 26 | . . . 9 . . . 4 5 1 3 . . . . . . . . . . . . . 2 1 . . 1 . . . Specialist 5 | . . . . . . . . . 2 2 . . . . . . 1 . . . . . . . . . . . . . . Hunter 15 | . . . . . . 1 1 1 . . 1 1 . . . . . . . . . . . 2 4 . . 4 . . . Programmer 32 | . . . . . . . . . . . 1 3 . 5 . . . . . . . . . . 9 . 9 . . 1 4 Enhanced Grunt 2 | . . . . . . . . . . . . . . . . . . . . . . . . 2 . . . . . . . Lightning 1 | . . . . . . . . . . . . . . . . . . . . . . . . 1 . . . . . . . Assembled 15 | . . 15 . . . . . . . . . . . . . . . . . . . . . . . . . . . . . Savage 1 | . . . . . . . . . . . . . . . . . . . . . . . . 1 . . . . . . . Best Kill Streak 15 | 5 5 15 6 4 . 4 8 4 3 6 1 12 . 4 . 3 1 . . . . 1 3 6 4 . 6 6 3 5 9 Combat Bots Only 15 | . 4 15 4 4 . 4 6 4 3 6 1 12 . 4 . 3 1 . . . . 1 . 5 3 . 5 6 . 5 9 Max Kills in Single Turn 6 | 1 3 3 3 2 . 4 4 2 2 2 1 2 . 3 . 3 1 . . . . 1 1 6 4 . 4 4 1 5 5 Gunslinging . | . . . . . . . . . . . . . . . . . . . . . . . . . . . . . . . . Exploded 5 | . 3 3 2 2 . 4 3 2 2 2 . 2 . 3 . 3 . . . . . . . 4 2 . 4 4 . 5 5 Melee 1 | . . . . . . . . . . . . . . . . . . . . . . . . . . . . . . 1 1 Uniques/NPCs Destroyed . | . . . . . . . . . . . . . . . . . . . . . . . . . . . . . . . . Combat | -11 -10 -10 -9 -9 -9 -8 -8 -8 -8 -8 -7 -7 -7 -7 -6 -6 -5 -5 -5 -5 -5 -5 -5 -5 -4 -4 -4 -4 -3 -2 -1 -------- Run | Yrd Mat Min Mat Min Exi Min Mat Gar Mat Gar Fac Gar Fac Gar Fac Gar Fac Was Fac Gar Ext Cet Arc Hub Fac Was Fac Gar Res Res Acc Hostile Shots Fired 1303 | . 57 22 73 28 . 5 88 79 64 61 17 86 . 80 20 55 28 . . 8 11 32 8 8 118 . 88 128 9 13 117 Missed 407 | . 12 7 21 11 . 2 24 21 17 20 9 33 . 39 8 14 13 . . 4 5 5 4 2 30 . 23 25 9 6 43 Damage Taken 17364 | . 512 440 729 257 . 56 1038 1002 942 592 108 761 . 756 99 696 461 . . 173 153 672 108 214 1790 . 1644 2112 228 154 1667 Core 1856 | . 80 72 85 . . . 142 99 108 77 15 57 . 122 11 120 42 . . 62 . 92 . . 79 . 169 130 81 . 213 Absorbed by Shields 229 | . . . . . . . . . . . . . . . . . . . . . 108 121 . . . . . . . . . Reduced by Siege Mode 438 | . . . . . . . . . . . . . . . . . . . . . . . . 17 120 . 179 122 . . . Ignored by Resistances 386 | . . . . . . . . . . . . 5 . . . . . . . . . . . . . . . . . . 381 Regen/Repaired (Parts) 678 | . . . . . . . . . 206 . . . . . . . . 250 . . . . . . . . 73 . . . 149 Core Remaining (%) 74 | 100 . 39 . . . 78 . . . 22 . . . 72 . 84 . . . . . . . 80 . . . 67 93 100 86 Volleys Fired 1112 | 10 64 17 96 17 . 9 50 65 36 44 20 62 . 75 11 75 34 . 5 39 61 19 . 18 98 5 75 63 5 1 38 Largest 2 | 2 2 2 2 2 . 2 2 2 2 2 2 2 . 2 1 1 2 . 1 2 1 1 . 2 2 1 2 2 1 1 1 Hottest 140 | 70 103 103 136 136 . 136 100 96 96 96 96 100 . 100 5 75 140 . 70 140 70 70 . 140 140 10 140 140 7 55 66 Shots Fired 1589 | 20 122 21 188 31 . 18 97 103 69 68 38 84 . 83 11 75 38 . 5 40 61 19 . 34 135 5 106 73 5 1 39 Gun 202 | 20 82 . . . . . 28 . . . . 52 . 20 . . . . . . . . . . . . . . . . . Cannon 1072 | . 39 8 184 27 . 17 66 100 68 55 38 26 . 39 . 42 16 . 1 16 3 19 . 32 114 . 98 53 . . 11 Launcher 80 | . 1 13 4 4 . 1 3 3 1 13 . 6 . 5 . 2 . . 1 . . . . 2 1 . 1 4 . 1 14 Special 235 | . . . . . . . . . . . . . . 19 11 31 22 . 3 24 58 . . . 20 5 7 16 5 . 14 Kinetic 875 | 10 64 4 . . . . 66 100 68 55 38 26 . 39 . 42 16 . 1 16 3 19 . 32 114 . 98 53 . . 11 Thermal 299 | 10 57 4 184 27 . 17 . . . . . . . . . . . . . . . . . . . . . . . . . Explosive 80 | . 1 13 4 4 . 1 3 3 1 13 . 6 . 5 . 2 . . 1 . . . . 2 1 . 1 4 . 1 14 Electromagnetic 100 | . . . . . . . 28 . . . . 52 . 20 . . . . . . . . . . . . . . . . . Robot Hit Streak 21 | 11 14 3 10 7 . 5 12 7 5 16 4 6 . 13 4 6 6 . 5 8 21 4 . 4 9 2 10 9 5 . 16 Robot Miss Streak 5 | 1 5 3 5 4 . 1 4 3 5 3 2 3 . 4 1 3 3 . . 3 1 2 . 3 3 1 5 3 . . 1 Penetration Max . | . . . . . . . . . . . . . . . . . . . . . . . . . . . . . . . . Secondary Targets 5 | . 2 . . . . . 1 . . . . 2 . . . . . . . . . . . . . . . . . . . Max Gunslinging Chain 1 | . 1 . . . . . 1 . . . . 1 . . . . . . . . . . . . . . . . . . . Shots Hit Robots 950 | 14 70 6 113 13 . 12 70 45 49 34 26 50 . 36 8 30 20 . 3 20 54 12 9 12 71 3 54 33 14 12 57 Core Hits 503 | 6 35 32 51 9 . 8 34 29 13 25 7 38 . 16 . 9 1 . . . . 2 4 26 23 . 28 21 5 14 67 Critical Kills 2 | . . . 2 . . . . . . . . . . . . . . . . . . . . . . . . . . . . Critical Parts Destroyed 1 | . 1 . . . . . . . . . . . . . . . . . . . . . . . . . . . . . . Critical Strikes 52 | 1 5 . 2 . . . 4 2 8 . 1 2 . 2 . 1 1 . . 1 . 2 . 2 7 . 4 3 . 1 3 Burn 5 | 1 4 . . . . . . . . . . . . . . . . . . . . . . . . . . . . . . Meltdown 2 | . . . 2 . . . . . . . . . . . . . . . . . . . . . . . . . . . . Destroy 1 | . 1 . . . . . . . . . . . . . . . . . . . . . . . . . . . . . . Blast 40 | . . . . . . . 4 2 8 . 1 2 . 2 . 1 1 . . 1 . 2 . 2 7 . 4 3 . . . Sever 2 | . . . . . . . . . . . . . . . . . . . . . . . . . . . . . . 1 1 Impale 2 | . . . . . . . . . . . . . . . . . . . . . . . . . . . . . . . 2 Melee Attacks 141 | . . . . . . . . . 10 1 10 . . . . . . . . . . . 10 . . . . . 18 19 73 Impact . | . . . . . . . . . . . . . . . . . . . . . . . . . . . . . . . . Slashing 72 | . . . . . . . . . . . . . . . . . . . . . . . 10 . . . . . 18 19 25 Piercing 48 | . . . . . . . . . . . . . . . . . . . . . . . . . . . . . . . 48 Sneak Attacks 50 | . . . . . . . . . 5 . 8 . . . . . . . . . . . 8 . . . . . 8 3 18 Combat Hostiles 3 | . . . . . . . . . . . . . . . . . . . . . . . . . . . . . 1 . 2 Follow-up Attacks 3 | . . . . . . . . . . . . . . . . . . . . . . . . . . . . . . . 3 Damage Inflicted 43735 | 195 1110 857 2943 699 . 382 2324 1633 1318 2286 481 1775 . 1365 . 1069 274 . . 73 50 768 766 2518 3376 . 3318 2144 1245 1991 8775 Guns 2183 | 195 666 . . . . . 477 . . . . 666 . 179 . . . . . . . . . . . . . . . . . Cannons 18902 | . 328 49 2496 285 . 258 1251 1423 1167 907 481 454 . 413 . 627 259 . . 73 50 768 . 659 2880 . 2864 1039 . . 171 Explosions 15764 | . 116 808 441 414 . 124 596 210 151 1379 . 655 . 773 . 442 15 . . . . . . 1859 496 . 447 1105 . 782 4951 Melee 6848 | . . . . . . . . . . . . . . . . . . . . . . . 766 . . . . . 1243 1209 3630 Ramming 38 | . . . 6 . . . . . . . . . . . . . . . . . . . . . . . 7 . 2 . 23 Kinetic 16072 | 94 443 49 . . . . 1251 1423 1167 907 481 454 . 413 . 627 259 . . 73 50 768 . 659 2880 . 2864 1039 . . 171 Thermal 4377 | 101 551 . 2496 285 . 258 190 . . . . 54 . 278 . . . . . . . . . . 164 . . . . . . Explosive 14709 | . 116 808 372 414 . 124 406 210 151 1379 . 601 . 495 . 442 15 . . . . . . 1559 332 . 447 1105 . 782 4951 Electromagnetic 1691 | . . . 69 . . . 477 . . . . 666 . 179 . . . . . . . . . 300 . . . . . . . Impact . | . . . . . . . . . . . . . . . . . . . . . . . . . . . . . . . . Slashing 4930 | . . . . . . . . . . . . . . . . . . . . . . . 766 . . . . . 1243 1209 1712 Piercing 1918 | . . . . . . . . . . . . . . . . . . . . . . . . . . . . . . . 1918 Highest Corruption 43 | . . . 1 1 1 1 . . . . 2 4 4 5 . . . . . . . . . 1 6 21 41 43 . 12 7 Average Corruption 12 | . . . 1 1 1 1 . . . . 2 2 4 4 . . . . . . . . . 1 3 12 25 41 . 6 4 Corruption Purged 10 | . . . . . . . . . . . . . . . . . . . . . . . . . . . . . . 10 . Corruption Blocked . | . . . . . . . . . . . . . . . . . . . . . . . . . . . . . . . . Effects 338 | . . . 8 7 . 5 . . . . 14 12 5 28 . . . . . . . . . . 16 8 103 106 . 9 17 Message Errors 88 | . . . 1 1 . 2 . . . . 5 4 2 8 . . . . . . . . . . 5 1 29 24 . 2 4 Matter Fused 82 | . . . 3 2 . 1 . . . . 3 3 2 6 . . . . . . . . . . 4 1 26 22 . 3 6 Heat Flow Errors 33 | . . . . 1 . 1 . . . . 1 1 . 5 . . . . . . . . . . 2 2 10 9 . . 1 Energy Discharges 36 | . . . . 2 . . . . . . 3 . . 4 . . . . . . . . . . . . 8 17 . 1 1 Parts Rejected 7 | . . . . . . . . . . . . 1 . . . . . . . . . . . . 2 . . 3 . 1 . Parts Fused 4 | . . . 1 . . . . . . . . . . . . . . . . . . . . . . . 2 1 . . . Data Loss (minor) 39 | . . . 1 . . . . . . . 1 3 . 1 . . . . . . . . . . 1 3 14 13 . 1 1 Data Loss (major) 13 | . . . 1 . . . . . . . . . 1 1 . . . . . . . . . . . . 2 4 . 1 3 Misfires 11 | . . . . 1 . 1 . . . . 1 . . 3 . . . . . . . . . . 1 . 3 . . . 1 Alerts 10 | . . . 1 . . . . . . . . . . . . . . . . . . . . . 1 . 4 4 . . . Misdirections 8 | . . . . . . . . . . . . . . . . . . . . . . . . . . 1 2 5 . . . Weapon Failures 7 | . . . . . . . . . . . . . . . . . . . . . . . . . . . 3 4 . . . Overload Shots . | . . . . . . . . . . . . . . . . . . . . . . . . . . . . . . . . Overflow Damage 3023 | . . 9 57 31 . 24 27 83 55 118 2 83 . 27 . 120 35 . . 8 . 10 269 123 307 . 288 8 253 143 943 Projectiles 873 | . . 9 49 . . 24 21 46 5 12 2 37 . . . 55 35 . . 8 . 10 . 29 249 . 280 2 . . . Explosions 835 | . . . 8 31 . . 6 37 50 106 . 46 . 27 . 65 . . . . . . . 94 58 . 8 6 . 24 269 Melee 1315 | . . . . . . . . . . . . . . . . . . . . . . . 269 . . . . . 253 119 674 Knockbacks 91 | . . 1 . . . . 12 7 12 7 5 . . 4 . . 2 . . 1 . 1 . 1 20 . 12 6 . . . Impact . | . . . . . . . . . . . . . . . . . . . . . . . . . . . . . . . . Kinetic 84 | . . 1 . . . . 11 5 11 6 5 . . 4 . . 2 . . 1 . 1 . 1 19 . 11 6 . . . Secondary 7 | . . . . . . . 1 2 1 1 . . . . . . . . . . . . . . 1 . 1 . . . . Self-Inflicted Damage 904 | . . 105 31 . . . 86 . . . . 36 . 96 . 57 80 . . . . . . 89 85 . . 88 . . 151 Shots 20 | . . 3 1 . . . 3 . . . . 2 . 3 . 1 1 . . . . . . 1 1 . . 1 . . 3 Rammed 4 | . . . 2 . . . . . . . . . . . . . . . . . . . . . . . 1 . . . 1 Targets Rammed 5 | . . . 2 . . . . . . . . . . . . . . . . . . . . . . . 1 . 1 . 1 Kicked 1 | . . . . . . . . . . . . . . . . . . . . . . . . . . . . . 1 . . Crushed . | . . . . . . . . . . . . . . . . . . . . . . . . . . . . . . . . Highest Temperature 578 | 63 222 112 192 354 . 234 300 258 261 309 158 106 . 232 . . 168 . . 18 . 144 . 225 578 213 408 409 441 39 248 Average Temperature 76 | 26 65 57 41 132 . 46 63 99 65 92 36 45 . 91 . . 82 . . 12 . 71 . 98 126 105 104 102 30 10 54 Received Heat Transfer 3010 | . 282 . 234 108 . . 468 297 225 135 18 90 . 72 27 117 96 . . 54 29 109 18 . 57 . 93 241 15 18 207 Effects 24 | . . . . . . . . 2 1 . . . . . . . . . . . . . . . 9 . 6 4 2 . . Shutdowns 7 | . . . . . . . . . . . . . . . . . . . . . . . . . 3 . 3 . 1 . . Energy Bleed 5 | . . . . . . . . . . . . . . . . . . . . . . . . . 3 . 2 . . . . Interference 8 | . . . . . . . . 2 1 . . . . . . . . . . . . . . . 2 . . 3 . . . Matter Decay 1 | . . . . . . . . . . . . . . . . . . . . . . . . . . . 1 . . . . Short Circuit 1 | . . . . . . . . . . . . . . . . . . . . . . . . . . . . 1 . . . Damage (minor) 2 | . . . . . . . . . . . . . . . . . . . . . . . . . 1 . . . 1 . . Siege Activations 16 | . . . . . . . . . . . . . . . . . . . . . . . . 1 7 . 6 2 . . . Total Turns 188 | . . . . . . . . . . . . . . . . . . . . . . . . 5 65 . 82 36 . . . Longest Duration 33 | . . . . . . . . . . . . . . . . . . . . . . . . 5 18 . 33 28 . . . Robots Corrupted 3 | . . . . . . . 1 . . . . . . 1 . . . . . . . . . 1 . . . . . . . Combat Hostiles 2 | . . . . . . . 1 . . . . . . 1 . . . . . . . . . . . . . . . . . Parts Fried 3 | . . . . . . . 3 . . . . . . . . . . . . . . . . . . . . . . . . Impact Corruptions 1 | . . . . . . . . . . . . . . . . . . . . . . . . . 1 . . . . . . Robots Melted 2 | . . . 2 . . . . . . . . . . . . . . . . . . . . . . . . . . . . Combat Hostiles . | . . . . . . . . . . . . . . . . . . . . . . . . . . . . . . . . Parts Melted 18 | 1 4 . 9 . . . 1 . 1 . . . . . . . . . . . . . . . 1 . . 1 . . . Heat Transferred 8028 | 370 1654 . 4329 481 . 444 250 . . . . . . 300 . . . . . . . . . . 200 . . . . . . Parts Sabotaged 3 | . . . . . . . . . . . . . . . . 3 . . . . . . . . . . . . . . . Parts Stolen . | . . . . . . . . . . . . . . . . . . . . . . . . . . . . . . . . Parts Stripped . | . . . . . . . . . . . . . . . . . . . . . . . . . . . . . . . . Power Chain Reactions 6 | . . . 1 . . . 2 . . . . 1 . 2 . . . . . . . . . . . . . . . . . Alert | -11 -10 -10 -9 -9 -9 -8 -8 -8 -8 -8 -7 -7 -7 -7 -6 -6 -5 -5 -5 -5 -5 -5 -5 -5 -4 -4 -4 -4 -3 -2 -1 ------- Run | Yrd Mat Min Mat Min Exi Min Mat Gar Mat Gar Fac Gar Fac Gar Fac Gar Fac Was Fac Gar Ext Cet Arc Hub Fac Was Fac Gar Res Res Acc Peak Influence 1829 | 25 239 111 738 279 . 125 334 1355 684 1176 683 804 422 1241 938 1829 1129 351 519 809 495 513 315 1255 618 195 274 1498 842 185 1699 Initial 959 | . 16 52 42 33 . . 21 217 660 401 617 120 422 295 651 656 959 341 . 167 424 264 125 . 614 195 122 191 842 48 110 Average 462 | 9 138 94 220 116 . 81 166 717 467 795 355 516 422 896 718 1278 974 226 163 481 340 359 170 608 434 189 88 952 248 93 685 Maximum Alert Level 5 | . 1 . 3 1 . . 1 4 2 4 2 3 2 4 3 5 4 1 2 3 2 2 1 4 2 . 1 4 3 . 5 Low Security (%) 34 | 100 63 100 69 92 . 100 80 . . . 20 14 . . . . . 54 57 6 5 . 61 37 . 100 93 3 56 100 8 Level 1 19 | . 36 . 16 7 . . 19 18 26 . 50 10 . 2 . . . 45 35 27 55 72 38 . 33 . 6 3 33 . 5 Level 2 24 | . . . 9 . . . . 35 73 38 29 62 100 24 76 8 . . 7 51 38 27 . 16 66 . . 27 6 . 60 Level 3 12 | . . . 3 . . . . 27 . 51 . 12 . 39 23 17 93 . . 14 . . . 32 . . . 24 4 . 11 Level 4 7 | . . . . . . . . 18 . 10 . . . 33 . 59 6 . . . . . . 13 . . . 41 . . . Level 5 . | . . . . . . . . . . . . . . . . 14 . . . . . . . . . . . . . . . High Security . | . . . . . . . . . . . . . . . . . . . . . . . . . . . . . . . . Max Security . | . . . . . . . . . . . . . . . . . . . . . . . . . . . . . . . 13 Squads Dispatched 91 | . 4 . 7 . . . 4 . 4 . 6 . . . 3 . 5 . 4 . 3 1 . 5 8 . 6 . 6 3 22 Investigation 18 | . 3 . 4 . . . 1 . . . . . . . 2 . . . . . 1 1 . 1 1 . 1 . 1 . 2 Extermination 17 | . . . . . . . . . . . 1 . . . . . 1 . 1 . . . . 1 5 . 5 . . 1 2 Reinforcement 33 | . 1 . 3 . . . 2 . 4 . 4 . . . . . 1 . 2 . 1 . . 2 1 . . . 5 2 5 Assault 20 | . . . . . . . . . . . 1 . . . . . 3 . . . 1 . . 1 1 . . . . . 13 Garrison 3 | . . . . . . . 1 . . . . . . . 1 . . . 1 . . . . . . . . . . . . Intercept . | . . . . . . . . . . . . . . . . . . . . . . . . . . . . . . . . Searches Triggered . | . . . . . . . . . . . . . . . . . . . . . . . . . . . . . . . . Construction Impeded 5 | . . . 1 . . . . . 1 . 1 . . . . . . . . . . . . 1 . . . . 1 . . Haulers Reinforced 4 | . . . . . . . . . . . . . . . . . . . 1 . . . . . . . . . 1 . 2 Active Scanning Responses . | . . . . . . . . . . . . . . . . . . . . . . . . . . . . . . . . Cargo Convoy Interrupts 1 | . . . . . . . . . . . . . . . . . 1 . . . . . . . . . . . . . . Stealth | -11 -10 -10 -9 -9 -9 -8 -8 -8 -8 -8 -7 -7 -7 -7 -6 -6 -5 -5 -5 -5 -5 -5 -5 -5 -4 -4 -4 -4 -3 -2 -1 --------- Run | Yrd Mat Min Mat Min Exi Min Mat Gar Mat Gar Fac Gar Fac Gar Fac Gar Fac Was Fac Gar Ext Cet Arc Hub Fac Was Fac Gar Res Res Acc Distress Signals 29 | . 2 . 3 . . . 2 . . . . . . . . . 1 . . . 2 2 . 1 2 . . . 7 1 6 Communications Jammed 611 | . . . . . . . . . . . . . . . . . 1 . 11 . 21 485 . 36 8 . 49 . . . . Distress Signals 609 | . . . . . . . . . . . . . . . . . 1 . 11 . 21 485 . 36 6 . 49 . . . . Times Spotted 685 | . 20 17 40 11 . 5 29 26 31 24 14 21 . 32 4 47 27 1 10 26 21 13 15 18 35 4 30 45 18 14 87 Peak Tracking Total 19 | . 5 8 5 4 . 4 6 3 4 6 4 8 . 5 2 6 6 1 3 5 4 5 2 11 11 2 4 5 5 4 19 Tactical Retreats 38 | . 2 1 . . . . 2 . 1 1 4 . . 1 . 3 . . . 1 . . . 2 1 . . 5 1 3 10 Traps | -11 -10 -10 -9 -9 -9 -8 -8 -8 -8 -8 -7 -7 -7 -7 -6 -6 -5 -5 -5 -5 -5 -5 -5 -5 -4 -4 -4 -4 -3 -2 -1 ------- Run | Yrd Mat Min Mat Min Exi Min Mat Gar Mat Gar Fac Gar Fac Gar Fac Gar Fac Was Fac Gar Ext Cet Arc Hub Fac Was Fac Gar Res Res Acc Traps Triggered 48 | . 5 . 2 1 . . 1 6 . 1 1 . . 4 . 5 1 . . 3 3 . . . 1 . 4 3 1 3 3 Indirectly . | . . . . . . . . . . . . . . . . . . . . . . . . . . . . . . . . Trap Hack Attempts . | . . . . . . . . . . . . . . . . . . . . . . . . . . . . . . . . Triggered . | . . . . . . . . . . . . . . . . . . . . . . . . . . . . . . . . Disarmed . | . . . . . . . . . . . . . . . . . . . . . . . . . . . . . . . . Reprogrammed 6 | . . . . . . . . . . . . . . . . . . . . . . . . . 6 . . . . . . Reused 2 | . . . . . . . . . . . . . . . . . . . . . . . . . 2 . . . . . . Traps Extracted . | . . . . . . . . . . . . . . . . . . . . . . . . . . . . . . . . Installed . | . . . . . . . . . . . . . . . . . . . . . . . . . . . . . . . . Triggered 2 | . . . . . . . . . . . . . . . . . . . . . . . . . 2 . . . . . . Machines | -11 -10 -10 -9 -9 -9 -8 -8 -8 -8 -8 -7 -7 -7 -7 -6 -6 -5 -5 -5 -5 -5 -5 -5 -5 -4 -4 -4 -4 -3 -2 -1 ---------- Run | Yrd Mat Min Mat Min Exi Min Mat Gar Mat Gar Fac Gar Fac Gar Fac Gar Fac Was Fac Gar Ext Cet Arc Hub Fac Was Fac Gar Res Res Acc Machines Disabled 132 | . . 2 8 . . 1 3 9 2 4 2 3 . 14 15 10 8 . 2 5 2 . 3 13 6 . 3 5 . 3 9 Max in Single Turn 3 | . . 1 3 . . 1 1 1 1 1 1 1 . 2 . 1 1 . 1 1 1 . . 3 2 . 1 1 . 2 2 Garrison Access 6 | . . . . . . . . . . . . . . . . . . . . . . . . 1 . . . . . . 5 Garrison Relay 34 | . . . . . . . . 5 . 3 . 2 . 8 . 7 . . . 5 . . . . . . . 4 . . . Network Hub 2 | . . . . . . . . . . . . . . . . . . . . . . . . 2 . . . . . . . Machines Repaired . | . . . . . . . . . . . . . . . . . . . . . . . . . . . . . . . . Machines Dismantled . | . . . . . . . . . . . . . . . . . . . . . . . . . . . . . . . . Machines Sabotaged . | . . . . . . . . . . . . . . . . . . . . . . . . . . . . . . . . Overloaded Fab Kills . | . . . . . . . . . . . . . . . . . . . . . . . . . . . . . . . . Hacking | -11 -10 -10 -9 -9 -9 -8 -8 -8 -8 -8 -7 -7 -7 -7 -6 -6 -5 -5 -5 -5 -5 -5 -5 -5 -4 -4 -4 -4 -3 -2 -1 --------- Run | Yrd Mat Min Mat Min Exi Min Mat Gar Mat Gar Fac Gar Fac Gar Fac Gar Fac Was Fac Gar Ext Cet Arc Hub Fac Was Fac Gar Res Res Acc Machines Accessed 117 | . 9 . 8 2 2 2 6 4 5 3 5 2 1 3 4 1 6 . 4 1 10 1 . 4 6 . 6 . 4 2 16 Terminals 92 | . 7 . 7 1 . 2 5 4 4 3 4 2 . 3 2 1 6 . 2 1 10 1 . 4 5 . 4 . 2 2 10 Fabricators 2 | . . . . . . . . . . . . . . . . . . . 1 . . . . . . . . . 1 . . Repair Stations 3 | . . . . . . . . . . . . . . . 1 . . . . . . . . . . . 1 . . . 1 Recycling Units 3 | . 2 . 1 . . . . . . . . . . . . . . . . . . . . . . . . . . . . Scanalyzers . | . . . . . . . . . . . . . . . . . . . . . . . . . . . . . . . . Garrison Access 14 | . . . . . . . 1 . 1 . 1 . 1 . 1 . . . 1 . . . . . 1 . 1 . 1 . 5 Total Hacks 345 | . 24 . 30 2 2 7 12 8 12 6 12 6 2 9 8 3 12 . 6 3 21 2 . 10 30 . 33 . 26 12 47 Successful 162 | . 14 . 15 1 2 2 6 3 5 1 4 2 2 3 2 1 3 . 2 1 8 . . 7 18 . 17 . 13 4 26 Failed 180 | . 10 . 14 1 . 4 6 5 7 5 8 4 . 6 6 2 9 . 4 2 13 2 . 3 12 . 15 . 13 8 21 Catastrophic 33 | . . . 1 . . 3 1 1 2 . . 2 . 3 1 . 2 . 1 2 3 1 . 1 . . 3 . 2 2 2 Database Lockouts 3 | . . . 1 . . 1 . . . . . . . . . . . . . . . . . . . . 1 . . . . Manual 182 | . 17 . 21 . 1 7 7 . 6 . 7 4 . 5 4 1 5 . 1 2 8 1 . 4 20 . 19 . 14 10 18 Terminals 303 | . 22 . 29 1 . 7 11 8 11 6 10 6 . 9 5 3 12 . 3 3 21 2 . 10 25 . 29 . 19 12 39 Fabricators 3 | . . . . . . . . . . . . . . . . . . . 2 . . . . . . . . . 1 . . Repair Stations 6 | . . . . . . . . . . . . . . . 2 . . . . . . . . . . . 2 . . . 2 Recycling Units 3 | . 2 . 1 . . . . . . . . . . . . . . . . . . . . . . . . . . . . Scanalyzers . | . . . . . . . . . . . . . . . . . . . . . . . . . . . . . . . . Garrison Access 27 | . . . . . . . 1 . 1 . 2 . 2 . 1 . . . 1 . . . . . 5 . 2 . 6 . 6 Terminal Hacks 96 | . 10 . 11 1 2 2 4 3 2 1 . 2 . 2 . 1 1 . . 1 6 . . 4 10 . 11 . 6 2 14 Record 1 | . . . . . 1 . . . . . . . . . . . . . . . . . . . . . . . . . . Part Schematic 1 | . . . . . . . . . . . . . . . . . . . . . . . . . . . 1 . . . . Robot Schematic 2 | . . . . . . . . . . . . . . . . . . . . . . . . 1 . . 1 . . . . Robot Analysis 12 | . 5 . 1 . . 2 . . 1 . . . . . . . . . . . . . . . . . 2 . 1 . . Prototype ID Bank 11 | . 4 . 2 . . . . . . . . . . . . . . . . . . . . . . . 2 . 1 . 2 Open Door 9 | . . . . 1 . . . 1 . 1 . . . . . . . . . . 5 . . . . . . . . . 1 Level Access Points 2 | . . . . . . . . . . . . . . . . . . . . . . . . . . . . . . 1 1 Branch Access Points 4 | . . . 1 . . . 1 . . . . . . . . . . . . . . . . . . . . . . 1 1 Emergency Access Points 9 | . 1 . . . . . . 1 . . . 1 . 1 . 1 . . . 1 . . . 1 1 . . . . . 1 Machine Index 1 | . . . . . . . . . . . . . . . . . . . . . . . . . . . . . . . 1 Terminal Index 6 | . . . 1 . . . . . . . . . . . . . 1 . . . . . . . 1 . 1 . 1 . 1 Garrison Index 4 | . . . . . . . 1 . . . . . . . . . . . . . . . . . 1 . 1 . . . 1 Unreport Threat 13 | . . . 4 . . . 1 . 1 . . . . . . . . . . . 1 . . . 2 . 1 . 3 . . Reprogram Traps 1 | . . . . . . . . . . . . . . . . . . . . . . . . . 1 . . . . . . Maintenance Status 1 | . . . . . . . . . . . . . . . . . . . . . . . . . 1 . . . . . . Patrol Status 3 | . . . . . . . . . . . . . . . . . . . . . . . . . 1 . . . . . 2 Transport Status 1 | . . . 1 . . . . . . . . . . . . . . . . . . . . . . . . . . . . Recall Extermination 2 | . . . . . . . . . . . . . . . . . . . . . . . . . . . 1 . . . 1 Recall Assault 1 | . . . . . . . . . . . . . . . . . . . . . . . . . . . . . . . 1 Hauler Manifests 4 | . . . 1 . . . 1 . . . . . . . . . . . . . . . . . 1 . 1 . . . . Zone Layout 4 | . . . . . . . . . . . . . . . . . . . . . . . . 2 1 . . . . . 1 Garrison Registry 2 | . . . . . . . . 1 . . . 1 . . . . . . . . . . . . . . . . . . . Security Stations 1 | . . . . . . . . . . . . . . 1 . . . . . . . . . . . . . . . . . Derelict Proto ID Bank 1 | . . . . . 1 . . . . . . . . . . . . . . . . . . . . . . . . . . Fabricator Hacks 1 | . . . . . . . . . . . . . . . . . . . . . . . . . . . . . 1 . . Network Status 1 | . . . . . . . . . . . . . . . . . . . . . . . . . . . . . 1 . . Repair Station Hacks 2 | . . . . . . . . . . . . . . . 1 . . . . . . . . . . . . . . . 1 Scan Component 1 | . . . . . . . . . . . . . . . 1 . . . . . . . . . . . . . . . . Refit 1 | . . . . . . . . . . . . . . . . . . . . . . . . . . . . . . . 1 Recycling Unit Hacks . | . . . . . . . . . . . . . . . . . . . . . . . . . . . . . . . . Scanalyzer . | . . . . . . . . . . . . . . . . . . . . . . . . . . . . . . . . Garrison Access Hacks 18 | . . . . . . . 1 . 1 . 2 . 2 . 1 . . . 1 . . . . . 2 . 2 . 1 . 5 Unlock Access 7 | . . . . . . . 1 . 1 . 1 . 1 . 1 . . . 1 . . . . . . . 1 . . . . Seal Access 4 | . . . . . . . . . . . . . . . . . . . . . . . . . . . . . . . 4 Coupler Status 7 | . . . . . . . . . . . 1 . 1 . . . . . . . . . . . 2 . 1 . 1 . 1 Unauthorized Hacks 45 | . 4 . 4 . . . 1 . 2 . 2 . . 1 . . 2 . 1 . 2 . . 3 6 . 4 . 5 2 6 Terminals 34 | . 2 . 3 . . . 1 . 2 . 2 . . 1 . . 2 . 1 . 2 . . 3 4 . 3 . 2 2 4 Botnet 33 | . 2 . 3 . . . 1 . 2 . 2 . . 1 . . 2 . 1 . 2 . . 3 3 . 3 . 2 2 4 Operators 1 | . . . . . . . . . . . . . . . . . . . . . . . . . 1 . . . . . . Fabricators . | . . . . . . . . . . . . . . . . . . . . . . . . . . . . . . . . Repair Stations 2 | . . . . . . . . . . . . . . . . . . . . . . . . . . . 1 . . . 1 Patch 2 | . . . . . . . . . . . . . . . . . . . . . . . . . . . 1 . . . 1 Recycling Units 3 | . 2 . 1 . . . . . . . . . . . . . . . . . . . . . . . . . . . . Tunnel 3 | . 2 . 1 . . . . . . . . . . . . . . . . . . . . . . . . . . . . Scanalyzers . | . . . . . . . . . . . . . . . . . . . . . . . . . . . . . . . . Garrison Access 6 | . . . . . . . . . . . . . . . . . . . . . . . . . 2 . . . 3 . 1 Broadcast 1 | . . . . . . . . . . . . . . . . . . . . . . . . . . . . . 1 . . Restock 2 | . . . . . . . . . . . . . . . . . . . . . . . . . 1 . . . 1 . . Reprogram 1 | . . . . . . . . . . . . . . . . . . . . . . . . . . . . . 1 . . Eject 2 | . . . . . . . . . . . . . . . . . . . . . . . . . 1 . . . . . 1 Data Cores Recovered 2 | . 1 . . . . . . . . . . . . . . . . . . . . . . 1 . . . . . . . Used 2 | . 1 . . . . . . . . . . . . . . . . . . . . . . 1 . . . . . . . Hacking Detections 89 | . 7 . 6 1 . 2 5 3 4 2 5 2 . 2 3 1 6 . 3 1 6 1 . 4 6 . 5 . 1 2 11 Full Trace Events 11 | . 1 . 3 . . . . 1 . . . . . 2 2 . . . . . . 1 . 1 . . . . . . . Feedback Events . | . . . . . . . . . . . . . . . . . . . . . . . . . . . . . . . . Feedback Blocked . | . . . . . . . . . . . . . . . . . . . . . . . . . . . . . . . . Robot Schematics Acquired 2 | . . . . . . . . . . . . . . . . . . . . . . . . 1 . . 1 . . . . Robots Built . | . . . . . . . . . . . . . . . . . . . . . . . . . . . . . . . . Authchips . | . . . . . . . . . . . . . . . . . . . . . . . . . . . . . . . . Time . | . . . . . . . . . . . . . . . . . . . . . . . . . . . . . . . . Total Robot Build Rating . | . . . . . . . . . . . . . . . . . . . . . . . . . . . . . . . . Part Schematics Acquired 1 | . . . . . . . . . . . . . . . . . . . . . . . . . . . 1 . . . . Parts Built . | . . . . . . . . . . . . . . . . . . . . . . . . . . . . . . . . Authchips . | . . . . . . . . . . . . . . . . . . . . . . . . . . . . . . . . Time . | . . . . . . . . . . . . . . . . . . . . . . . . . . . . . . . . Total Part Build Rating . | . . . . . . . . . . . . . . . . . . . . . . . . . . . . . . . . Parts Repaired . | . . . . . . . . . . . . . . . . . . . . . . . . . . . . . . . . Time . | . . . . . . . . . . . . . . . . . . . . . . . . . . . . . . . . Parts Recycled . | . . . . . . . . . . . . . . . . . . . . . . . . . . . . . . . . Recycled Matter . | . . . . . . . . . . . . . . . . . . . . . . . . . . . . . . . . Retrieved Matter . | . . . . . . . . . . . . . . . . . . . . . . . . . . . . . . . . Retrieved Components . | . . . . . . . . . . . . . . . . . . . . . . . . . . . . . . . . Parts Scanalyzed . | . . . . . . . . . . . . . . . . . . . . . . . . . . . . . . . . Part Schematics Acquired . | . . . . . . . . . . . . . . . . . . . . . . . . . . . . . . . . Parts Damaged . | . . . . . . . . . . . . . . . . . . . . . . . . . . . . . . . . Bothacking | -11 -10 -10 -9 -9 -9 -8 -8 -8 -8 -8 -7 -7 -7 -7 -6 -6 -5 -5 -5 -5 -5 -5 -5 -5 -4 -4 -4 -4 -3 -2 -1 ------------ Run | Yrd Mat Min Mat Min Exi Min Mat Gar Mat Gar Fac Gar Fac Gar Fac Gar Fac Was Fac Gar Ext Cet Arc Hub Fac Was Fac Gar Res Res Acc Used RIF Installer 7 | . . . . . . . . 1 . 1 . 1 . 1 . 1 . . . 1 . . . . . . . 1 . . . Hotswap 1 | . . . . . . . . . . . . 1 . . . . . . . . . . . . . . . . . . . Command Fork 1 | . . . . . . . . . . 1 . . . . . . . . . . . . . . . . . . . . . Threat Obfuscator 2 | . . . . . . . . . . . . . . 1 . . . . . . . . . . . . . 1 . . . Signal Jammer 1 | . . . . . . . . . . . . . . . . 1 . . . . . . . . . . . . . . . Autoassimilate 1 | . . . . . . . . . . . . . . . . . . . . 1 . . . . . . . . . . . Robots Hacked 155 | . . . . . . . . . 7 1 7 . . 14 5 19 16 . 2 15 11 . . . 15 3 6 13 5 . 16 Non-combat 26 | . . . . . . . . . 2 . 7 . . . 1 . 4 . 1 . 1 . . . 5 . 3 . 2 . . Combat 129 | . . . . . . . . . 5 1 . . . 14 4 19 12 . 1 15 10 . . . 10 3 3 13 3 . 16 Autoassimilated 15 | . . . . . . . . . . . . . . . . . . . . 1 . . . . . . 2 4 1 . 7 Robot Hacks Applied 149 | . . . . . . . . . 9 1 8 . . 15 5 20 16 . 3 15 11 . . . 15 3 5 9 5 . 9 parse_system 5 | . . . . . . . . . . . . . . . . 1 . . . 1 2 . . . 1 . . . . . . generate_echo 1 | . . . . . . . . . . . 1 . . . . . . . . . . . . . . . . . . . . find_chute 4 | . . . . . . . . . . . . . . . 1 . 1 . . . . . . . 2 . . . . . . map_walls 2 | . . . . . . . . . . . 1 . . . . . . . . . 1 . . . . . . . . . . drop_inventory 7 | . . . . . . . . . . . 3 . . . . . 2 . . . . . . . 1 . . . 1 . . find_recycling 1 | . . . . . . . . . . . . . . . . . 1 . . . . . . . . . . . . . . purge_threat 8 | . . . . . . . . . 2 . 2 . . . . . . . 2 . . . . . . . 1 . 1 . . locate_traps 1 | . . . . . . . . . 1 . . . . . . . . . . . . . . . . . . . . . . block_reporting 1 | . . . . . . . . . . . . . . . . . . . . . . . . . . . . . 1 . . map_route 2 | . . . . . . . . . . . 1 . . . . . . . . . . . . . 1 . . . . . . ignore_targets 3 | . . . . . . . . . . . . . . . . . . . . . . . . . . 3 . . . . . scatter_targeting 1 | . . . . . . . . . . . . . . . . . . . . . 1 . . . . . . . . . . disrupt_area 1 | . . . . . . . . . . . . . . . . . . . . 1 . . . . . . . . . . . spike_heat 6 | . . . . . . . . . . . . . . . . 3 . . . . 2 . . . . . . 1 . . . overload_power 1 | . . . . . . . . . . . . . . . . . . . . . . . . . 1 . . . . . . amplify_resonance 3 | . . . . . . . . . . . . . . . . . . . . 1 . . . . 1 . . . . . 1 disable_weapons 1 | . . . . . . . . . . . . . . . . . . . . 1 . . . . . . . . . . . reboot_system 1 | . . . . . . . . . . . . . . . . . . . . . 1 . . . . . . . . . . overwrite_iff 13 | . . . . . . . . . . . . . . 3 . . 2 . . . 1 . . . 4 . . . . . 3 formatsys_low 3 | . . . . . . . . . 1 . . . . . . . . . . . . . . . . . 2 . . . . formatsys_high 79 | . . . . . . . . . 5 1 . . . 12 4 16 8 . 1 11 3 . . . 2 . 2 7 2 . 5 formatsys_deep 5 | . . . . . . . . . . . . . . . . . 2 . . . . . . . 2 . . 1 . . . Relay Couplers Released 156 | . . . . . . . . 22 . 13 . 9 . 30 . 28 3 . . 22 . . . 2 8 . . 15 . . 4 Ejected 8 | . . . . . . . . . . . . . . . . . . . . . . . . . 4 . . . . . 4 Machine Destruction 141 | . . . . . . . . 22 . 13 . 9 . 30 . 28 . . . 22 . . . 2 . . . 15 . . . Programmers 7 | . . . . . . . . . . . . . . . . . 3 . . . . . . . 4 . . . . . . Attached 55 | . . . . . . . . . 6 1 1 . . 6 1 5 4 . 2 6 1 . . . 5 . 1 5 1 . 10 Fabnet Peak Effective % . | . . . . . . . . . . . . . . . . . . . . . . . . . . . . . . . . Robots Rewired 27 | . . . . . . . . 2 . . . . . . 2 . . . . 3 17 . . . . . . 3 . . . Allies Hacked 3 | . . . . . . . . . . . . . . . . . 2 . . . 1 . . . . . . . . . . Hacks Repelled . | . . . . . . . . . . . . . . . . . . . . . . . . . . . . . . . . Allies | -11 -10 -10 -9 -9 -9 -8 -8 -8 -8 -8 -7 -7 -7 -7 -6 -6 -5 -5 -5 -5 -5 -5 -5 -5 -4 -4 -4 -4 -3 -2 -1 -------- Run | Yrd Mat Min Mat Min Exi Min Mat Gar Mat Gar Fac Gar Fac Gar Fac Gar Fac Was Fac Gar Ext Cet Arc Hub Fac Was Fac Gar Res Res Acc Total Allies 205 | . . . . 3 . . . 2 6 2 . . . 15 6 16 13 20 7 17 28 5 . . 18 . 6 17 6 . 18 Largest Group 37 | . . . . 3 3 3 3 2 3 4 1 . . 7 12 14 14 21 22 16 37 31 22 21 5 1 5 11 12 1 7 Highest-Rated Group 1538 | . . . . 40 40 40 40 56 120 141 90 . . 144 305 385 457 741 777 690 1500 1538 1143 1112 180 12 203 609 620 49 428 Highest-Rated Ally 178 | . . . . 16 16 16 16 31 90 90 90 . . 32 41 41 137 50 137 137 159 159 137 137 131 12 58 116 68 49 178 Total Orders 6 | . . . . . . . . . 1 . . . . . . . . . . . . . . . 3 . 2 . . . . STAY 2 | . . . . . . . . . . . . . . . . . . . . . . . . . 2 . . . . . . FOLLOW 1 | . . . . . . . . . . . . . . . . . . . . . . . . . 1 . . . . . . AID 3 | . . . . . . . . . 1 . . . . . . . . . . . . . . . . . 2 . . . . Ally Attacks 1462 | . . . . 12 . 4 20 31 78 29 3 . . 48 8 161 79 7 99 121 180 125 56 95 30 24 29 104 56 . 63 Total Damage 41967 | . . . . 146 . . 178 780 1098 982 147 . . 928 1072 3790 3070 252 2624 3145 4264 2997 1422 4180 841 290 1150 3855 1885 . 2871 Kills 268 | . . . . 3 . . 3 5 12 7 1 . . 7 3 28 19 1 25 20 25 15 4 24 7 1 7 26 16 . 9 Allies Corrupted 10 | . . . . . . . . . . . . . . . . 1 . . 1 2 . . . 3 . . . . . . 3 Allies Melted . | . . . . . . . . . . . . . . . . . . . . . . . . . . . . . . . . Intel | -11 -10 -10 -9 -9 -9 -8 -8 -8 -8 -8 -7 -7 -7 -7 -6 -6 -5 -5 -5 -5 -5 -5 -5 -5 -4 -4 -4 -4 -3 -2 -1 ------- Run | Yrd Mat Min Mat Min Exi Min Mat Gar Mat Gar Fac Gar Fac Gar Fac Gar Fac Was Fac Gar Ext Cet Arc Hub Fac Was Fac Gar Res Res Acc Robot Analysis Total 12 | . 5 . 1 . . 2 . . 1 . . . . . . . . . . . . . . . . . 2 . 1 . . Derelict Logs Recovered 1 | . . . . 1 . . . . . . . . . . . . . . . . . . . . . . . . . . . Drone Launches . | . . . . . . . . . . . . . . . . . . . . . . . . . . . . . . . . Drone Recoveries . | . . . . . . . . . . . . . . . . . . . . . . . . . . . . . . . . Exploration | -11 -10 -10 -9 -9 -9 -8 -8 -8 -8 -8 -7 -7 -7 -7 -6 -6 -5 -5 -5 -5 -5 -5 -5 -5 -4 -4 -4 -4 -3 -2 -1 ------------- Run | Yrd Mat Min Mat Min Exi Min Mat Gar Mat Gar Fac Gar Fac Gar Fac Gar Fac Was Fac Gar Ext Cet Arc Hub Fac Was Fac Gar Res Res Acc Turns Passed 30605 | 129 1265 143 2091 988 440 717 1078 1339 1095 1138 1421 741 221 1035 195 1339 1040 872 471 1120 1502 459 941 437 1588 150 1941 1793 918 517 1481 Spaces Moved 18314 | 57 599 64 1032 579 270 423 477 640 499 579 1023 447 154 674 142 898 669 243 250 610 774 183 190 228 701 90 928 869 1238 828 1956 Core 88 | 4 . . . . . . . . . . . . . . . . . 39 . . . . 45 . . . . . . . . Treads 10098 | 53 599 64 1032 579 270 423 477 550 499 579 7 . . . . . 110 204 250 610 774 183 145 228 701 90 928 743 . . . Legs 4324 | . . . . . . . . . . . 1016 447 154 674 142 898 559 . . . . . . . . . . 126 308 . . Wheels 90 | . . . . . . . . 90 . . . . . . . . . . . . . . . . . . . . . . . Hover 3714 | . . . . . . . . . . . . . . . . . . . . . . . . . . . . . 930 828 1956 Flight . | . . . . . . . . . . . . . . . . . . . . . . . . . . . . . . . . Fastest Speed 27 | 50 160 160 160 160 160 160 160 156 156 163 76 116 116 76 115 76 76 160 160 160 160 160 160 160 160 160 160 110 36 33 27 Average Speed 130 | 152 160 160 160 160 160 160 160 157 157 166 111 116 116 112 115 115 118 350 160 160 160 160 453 160 160 160 164 165 57 34 36 Slowest Speed 1400 | 160 160 160 160 160 160 160 160 165 163 167 167 116 116 116 115 116 180 1350 160 160 160 160 1400 160 160 160 166 180 112 40 49 Overloaded Moves 216 | . . . . . . . . . . . 116 . . 48 . 8 42 . . . . . . . . . . . . . 2 Propulsion Burnouts . | . . . . . . . . . . . . . . . . . . . . . . . . . . . . . . . . Robots Hopped 2 | . . . . . . . . . . . . . . . . . . . . . . . . . . . . . 2 . . Cave-ins Triggered . | . . . . . . . . . . . . . . . . . . . . . . . . . . . . . . . . Exploration Rate (%) 55 | 5 96 14 89 99 64 97 48 90 60 71 36 62 5 79 8 83 16 86 10 80 84 60 74 33 23 80 23 78 30 27 55 Regions Visited 31 Branch Regions 8 Pre-discovered Areas 4 | . 2 . 1 . 1 . . . . . . . . . . . . . . . . . . . . . . . . . . Known Exits Taken 10 | . . . 1 . . . 1 . 1 . 1 . 1 . 1 . . . 1 . . . . . . . 1 . 1 1 . Unknown Exits Taken 10 | 1 1 1 . 1 1 1 . . . . . . . . . . . . . . 1 1 1 1 . . . . . . . Scrap Searched 2 | . . . . 1 . 1 . . . . . . . . . . . . . . . . . . . . . . . . . Spaces Dug 139 | . . . . 10 . . . 11 12 2 1 1 . . . . 25 . . 1 . . . 3 18 . 9 7 9 5 25 Terrain Destroyed 1161 | . 9 86 30 32 . 9 42 24 31 36 5 17 . 49 . 29 31 . 18 5 1 4 . 201 99 . 73 99 9 9 213 Melee 34 | . . . . . . . . . . . . . . . . . . . . . . . . . . . . . 9 5 20 Projectile 194 | . . . . . . . 19 . 21 1 5 . . . . 2 9 . . 5 1 4 . 14 52 . 42 13 . . 6 AOE 933 | . 9 86 30 32 . 9 23 24 10 35 . 17 . 49 . 27 22 . 18 . . . . 187 47 . 31 86 . 4 187 Terrain Rammed . | . . . . . . . . . . . . . . . . . . . . . . . . . . . . . . . . Walls Destroyed . | . . . . . . . . . . . . . . . . . . . . . . . . . . . . . . . . Machines Disabled . | . . . . . . . . . . . . . . . . . . . . . . . . . . . . . . . . Actions | -11 -10 -10 -9 -9 -9 -8 -8 -8 -8 -8 -7 -7 -7 -7 -6 -6 -5 -5 -5 -5 -5 -5 -5 -5 -4 -4 -4 -4 -3 -2 -1 --------- Run | Yrd Mat Min Mat Min Exi Min Mat Gar Mat Gar Fac Gar Fac Gar Fac Gar Fac Was Fac Gar Ext Cet Arc Hub Fac Was Fac Gar Res Res Acc Total 23399 | 76 788 84 1287 610 278 445 698 874 725 678 1259 587 196 878 168 1135 898 263 320 738 1035 331 254 266 1050 96 1243 1164 1404 1018 2553 Wait 2868 | 3 74 2 119 5 . 11 123 76 144 30 175 43 43 76 14 99 138 13 57 65 188 122 40 13 206 . 209 161 71 150 398 Move 18286 | 56 598 63 1031 578 269 422 477 639 499 578 1023 446 153 673 142 897 669 242 249 609 773 182 189 227 701 89 928 868 1233 827 1956 Hop 2 | . . . . . . . . . . . . . . . . . . . . . . . . . . . . . 2 . . Pick Up 209 | . 19 1 9 1 3 1 12 21 2 5 10 11 . 11 . 18 9 1 . 11 3 1 3 . 9 2 1 18 9 5 13 Fast Attach 155 | 7 9 . 3 1 . . 7 2 5 1 5 1 . 1 . 9 12 2 1 . 5 3 1 . 6 . 8 14 25 7 20 Attach 117 | . . 1 3 . 2 . 5 5 2 1 4 2 . 6 1 10 7 . 4 1 . . 3 3 5 . 5 16 5 3 23 Detach 55 | . 1 . 1 . 1 . 2 . . . . 2 . 3 . 5 9 1 3 . . . . 3 3 . 3 9 2 . 7 Swap 155 | . 8 . 10 5 2 2 8 7 16 13 2 10 . 15 . 4 5 . . 7 1 1 2 2 16 . 5 1 1 . 12 Drop 234 | . 15 . 13 3 1 . 14 20 6 4 10 10 . 7 . 10 15 3 1 5 4 3 6 . 6 . 8 14 31 6 19 Fire 1112 | 10 64 17 96 17 . 9 50 65 36 44 20 62 . 75 11 75 34 . 5 39 61 19 . 18 98 5 75 63 5 1 38 Melee 134 | . . . . . . . . . 10 1 10 . . . . . . . . . . . 10 . . . . . 18 19 66 Ram . | . . . . . . . . . . . . . . . . . . . . . . . . . . . . . . . . Kick 1 | . . . . . . . . . . . . . . . . . . . . . . . . . . . . . 1 . . Crush 3 | . . . 2 . . . . . . . . . . . . . . . . . . . . . . . 1 . . . . Escape Stasis 29 | . . . . . . . . 16 . . . . . 10 . 3 . . . . . . . . . . . . . . . Rewire 39 | . . . . . . . . 23 5 1 . . . 1 . 5 . 1 . 1 . . . . . . . . 1 . 1 Trap . | . . . . . . . . . . . . . . . . . . . . . . . . . . . . . . . . Miscellaneous . | . . . . . . . . . . . . . . . . . . . . . . . . . . . . . . . . Route ------- -11/Scrapyard -10/Materials (discovered 5 exits: *Mat x3 / [*Min x2]) -10/Mines -9/Materials (discovered 4 exits: *Mat x3 / *Min) -9/Mines (discovered 3 exits: *Mat x2 / *Exi) -9/Exiles -8/Mines (discovered 2 exits: *Mat x2) -8/Materials (discovered 4 exits: *Fac / *Sto x2 / Gar) -8/Garrison (discovered 3 exits: *Mat x3) -8/Materials (discovered 3 exits: *Fac x2 / Gar) -8/Garrison (discovered 3 exits: *Fac x3) -7/Factory (discovered 2 exits: *Fac / Gar) -7/Garrison (discovered 4 exits: *Fac x4) -7/Factory (discovered 2 exits: *Fac / Gar) -7/Garrison (discovered 3 exits: *Fac x3) -6/Factory -6/Garrison (discovered 3 exits: *Fac x3) -5/Factory -5/Waste -5/Factory (discovered 2 exits: *Fac / Gar) -5/Garrison (discovered 4 exits: *Ext x4) -5/Extension (discovered 2 exits: *Fac / *Cet) -5/Cetus (discovered 2 exits: *Fac / [*Arc]) -5/Archives -5/Hub_04(d) -4/Factory -4/Waste -4/Factory (discovered 2 exits: [*Upp] / Gar) -4/Garrison (discovered 4 exits: *Res x3 / [*Fac]) -3/Research -2/Research (discovered 5 exits: *Acc x3 / Qua x2) -1/Access (discovered 2 exits: *Sur / Com) To Epsilon Eridani History --------- Turn | Location | Event 5 | -11/Scrapyard | Discovered new exit (range 16) 130 | -11/Scrapyard | Entered Materials 189 | -10/Materials | Discovered new exit (range 14) 302 | -10/Materials | Build established: Mutant 512 | -10/Materials | Discovered new exit (range 5) 740 | -10/Materials | Discovered new exit (range 13) 827 | -10/Materials | Discovered new exit (range 11) 1261 | -10/Materials | Discovered new exit (range 10) 1395 | -10/Materials | Entered Mines 1396 | -10/Mines | Assembled infested the area 1435 | -10/Mines | Core integrity fell below 50% 1479 | -10/Mines | Destroyed 15 combat bots 1522 | -10/Mines | Discovered new exit (range 4) 1538 | -10/Mines | Entered Materials 1538 | -9/Materials | Evolved 2 slots: Propulsion x1, Utility x1 1737 | -9/Materials | Discovered new exit (range 12) 2171 | -9/Materials | Identified exit to Mines 2218 | -9/Materials | Central database locked down 2465 | -9/Materials | Discovered new exit (range 16) 2639 | -9/Materials | Build established: Scavenger-Mutant 2652 | -9/Materials | Discovered new exit (range 15) 2913 | -9/Materials | Discovered new exit (range 16) 3629 | -9/Materials | Entered Mines 3646 | -9/Mines | Met a Derelict who couldn't figure out how to use a Trap Extractor 3744 | -9/Mines | Met a Derelict bent on vengeance 3849 | -9/Mines | Assisted by bots powering up and referring to "LRC-V3" 3877 | -9/Mines | Received a Rocket Launcher from a helpful Derelict 3945 | -9/Mines | Discovered new exit (range 11) 4405 | -9/Mines | Discovered new exit (range 9) 4605 | -9/Mines | Deemed a non-threat by the Exiles lab entrance 4605 | -9/Mines | Discovered new exit (range 5) 4617 | -9/Mines | Entered Exiles 4617 | -9/Exiles | Accompanied by 3 allies 4661 | -9/Exiles | Met 8R-AWN 4687 | -9/Exiles | Met EX-HEX 4746 | -9/Exiles | Met EX-DEC 4762 | -9/Exiles | Learned location of Zion (-7) 4789 | -9/Exiles | Met EX-BIN 4812 | -9/Exiles | Aligned with FarCom system 4813 | -9/Exiles | Given EX-Vault access code 4850 | -9/Exiles | Opened EX-Vault 4861 | -9/Exiles | Found Potential Leg 4864 | -9/Exiles | Found Potential Leg 4902 | -9/Exiles | Warned to stay clear of 0b10 Research branches 5032 | -9/Exiles | Discovered new exit (range 14) 5057 | -9/Exiles | Left Exiles lab with Potential Leg 5057 | -9/Exiles | Entered Mines 5057 | -8/Mines | Accompanied by 3 allies 5286 | -8/Mines | Discovered new exit (range 10) 5563 | -8/Mines | Discovered new exit (range 8) 5575 | -8/Mines | Central database locked down 5774 | -8/Mines | Entered Materials 5774 | -8/Materials | Accompanied by 3 allies 5774 | -8/Materials | Evolved 2 slots: Propulsion x1, Utility x1 6104 | -8/Materials | Identified exit to Storage 6368 | -8/Materials | Discovered new exit (range 16) 6660 | -8/Materials | Lost 3 parts (2n1u) 6741 | -8/Materials | Garrison activated, responded to threat 6852 | -8/Materials | Identified exit to Garrison 6852 | -8/Materials | Entered Garrison 6930 | -8/Garrison | Triggered checkpoint 6962 | -8/Garrison | Garrison Relay disabled 7008 | -8/Garrison | Build established: Mutant 7054 | -8/Garrison | Triggered checkpoint 7128 | -8/Garrison | Discovered new exit (range 9) 7326 | -8/Garrison | Triggered checkpoint 7397 | -8/Garrison | Garrison Relay disabled 7478 | -8/Garrison | Triggered checkpoint 7537 | -8/Garrison | Spotted B-75 Beast 7556 | -8/Garrison | Allies destroyed B-75 Beast 7673 | -8/Garrison | Discovered new exit (range 9) 7766 | -8/Garrison | Triggered checkpoint 7791 | -8/Garrison | Discovered new exit (range 36) 7791 | -8/Garrison | Discovered new exit (range 54) 7791 | -8/Garrison | Discovered new exit (range 21) 7814 | -8/Garrison | Garrison Relay disabled 7996 | -8/Garrison | Installed Relay Interface Framework 8035 | -8/Garrison | Garrison Relay disabled 8036 | -8/Garrison | Triggered checkpoint 8092 | -8/Garrison | Garrison Relay disabled 8191 | -8/Garrison | Entered Materials 8191 | -8/Materials | Accompanied by 1 ally 8283 | -8/Materials | Build established: Bothacker-Mutant 8461 | -8/Materials | Core integrity fell below 50% 8673 | -8/Materials | Discovered new exit (range 5) 9142 | -8/Materials | Discovered new exit (range 5) 9286 | -8/Materials | Identified exit to Garrison 9286 | -8/Materials | Entered Garrison 9286 | -8/Garrison | Accompanied by 3 allies 9353 | -8/Garrison | Rescued a captive Derelict 9480 | -8/Garrison | Lost 3 allies 9564 | -8/Garrison | Triggered checkpoint 9605 | -8/Garrison | Garrison Relay disabled 9788 | -8/Garrison | Triggered checkpoint 9790 | -8/Garrison | Triggered checkpoint 9794 | -8/Garrison | Triggered checkpoint 9943 | -8/Garrison | Discovered new exit (range 12) 10032 | -8/Garrison | Triggered checkpoint 10107 | -8/Garrison | Discovered new exit (range 12) 10121 | -8/Garrison | Expanded RIF knowledge: Command Fork 10150 | -8/Garrison | Triggered checkpoint 10168 | -8/Garrison | Garrison Relay disabled 10305 | -8/Garrison | Triggered checkpoint 10390 | -8/Garrison | Discovered new exit (range 9) 10424 | -8/Garrison | Entered Factory 10424 | -7/Factory | Accompanied by 1 ally 10424 | -7/Factory | Evolved 2 slots: Propulsion x1, Utility x1 10824 | -7/Factory | First assault squad dispatched 11653 | -7/Factory | Discovered new exit (range 10) 11845 | -7/Factory | Identified exit to Garrison 11845 | -7/Factory | Entered Garrison 11921 | -7/Garrison | Triggered checkpoint 11949 | -7/Garrison | Garrison Relay disabled 12017 | -7/Garrison | Triggered checkpoint 12019 | -7/Garrison | Triggered checkpoint 12019 | -7/Garrison | Triggered checkpoint 12076 | -7/Garrison | Destroyed 12 combat bots 12091 | -7/Garrison | Expanded RIF knowledge: Hotswap 12103 | -7/Garrison | Heavy support dispatched to Factory 12225 | -7/Garrison | Triggered checkpoint 12239 | -7/Garrison | Garrison Relay disabled 12273 | -7/Garrison | Discovered new exit (range 14) 12364 | -7/Garrison | Discovered new exit (range 52) 12364 | -7/Garrison | Discovered new exit (range 30) 12364 | -7/Garrison | Discovered new exit (range 19) 12364 | -7/Garrison | Discovered new exit (range 31) 12586 | -7/Garrison | Entered Factory 12713 | -7/Factory | Discovered new exit (range 6) 12801 | -7/Factory | Identified exit to Garrison 12807 | -7/Factory | Entered Garrison 12843 | -7/Garrison | Triggered checkpoint 12881 | -7/Garrison | Garrison Relay disabled 12958 | -7/Garrison | Spotted B-75 Beast 12961 | -7/Garrison | Triggered checkpoint 12978 | -7/Garrison | Expanded RIF knowledge: Threat Obfuscation 12984 | -7/Garrison | Lost 3 allies 12991 | -7/Garrison | Discovered new exit (range 10) 13078 | -7/Garrison | Garrison Relay disabled 13080 | -7/Garrison | Garrison Relay disabled 13085 | -7/Garrison | Garrison Relay disabled 13087 | -7/Garrison | Garrison Relay disabled 13194 | -7/Garrison | Learned Factory security intel 13197 | -7/Garrison | Triggered checkpoint 13235 | -7/Garrison | Garrison Relay disabled 13284 | -7/Garrison | Build established: Botlord-Mutant 13333 | -7/Garrison | Triggered checkpoint 13341 | -7/Garrison | Triggered checkpoint 13442 | -7/Garrison | Discovered new exit (range 9) 13498 | -7/Garrison | Garrison Relay disabled 13563 | -7/Garrison | Triggered checkpoint 13623 | -7/Garrison | Discovered new exit (range 10) 13661 | -7/Garrison | Triggered checkpoint 13668 | -7/Garrison | Garrison Relay disabled 13842 | -7/Garrison | Entered Factory 13842 | -6/Factory | Accompanied by 7 allies 13842 | -6/Factory | Evolved 2 slots: Utility x2 13991 | -6/Factory | Garrison activated, responded to threat 14037 | -6/Factory | Identified exit to Garrison 14037 | -6/Factory | Entered Garrison 14037 | -6/Garrison | Accompanied by 12 allies 14195 | -6/Garrison | Triggered checkpoint 14201 | -6/Garrison | Garrison Relay disabled 14266 | -6/Garrison | Spotted B-75 Beast 14295 | -6/Garrison | Allies destroyed B-75 Beast 14323 | -6/Garrison | Triggered checkpoint 14412 | -6/Garrison | Lost 8 allies 14477 | -6/Garrison | Expanded RIF knowledge: Signal Jamming 14502 | -6/Garrison | Discovered new exit (range 10) 14666 | -6/Garrison | H-XX Assembler disabled 14799 | -6/Garrison | Triggered checkpoint 14875 | -6/Garrison | Discovered new exit (range 3) 14897 | -6/Garrison | Triggered checkpoint 14917 | -6/Garrison | Garrison Relay disabled 15046 | -6/Garrison | Discovered new exit (range 7) 15094 | -6/Garrison | Triggered checkpoint 15139 | -6/Garrison | Garrison Relay disabled 15179 | -6/Garrison | Garrison Relay disabled 15181 | -6/Garrison | Garrison Relay disabled 15185 | -6/Garrison | Garrison Relay disabled 15188 | -6/Garrison | Garrison Relay disabled 15376 | -6/Garrison | Entered Factory 15376 | -5/Factory | Accompanied by 11 allies 15376 | -5/Factory | Evolved 2 slots: Propulsion x1, Utility x1 15676 | -5/Factory | First assault squad dispatched 15760 | -5/Factory | Assimilated ARC 6a with formatsys_deep 15827 | -5/Factory | Lost 4 allies 16009 | -5/Factory | Cargo convoy interrupted 16058 | -5/Factory | Lost 12 allies 16178 | -5/Factory | Found Prototype Launcher 16178 | -5/Factory | Identified Gui. Micro-nuke Launcher 16382 | -5/Factory | Assimilated ARC 6b with formatsys_deep 16416 | -5/Factory | Sucked down chute 16416 | -5/Factory | Entered Waste 16417 | -5/Waste | Joined by Warlord forces that had cleared the area 16436 | -5/Waste | 1 allies followed down the chute 16691 | -5/Waste | Discovered new exit (range 12) 17288 | -5/Waste | Entered Factory 17288 | -5/Factory | Accompanied by 19 allies 17436 | -5/Factory | Discovered new exit (range 7) 17631 | -5/Factory | Lost 5 allies 17650 | -5/Factory | Spotted B-75 Beast 17653 | -5/Factory | Garrison activated, responded to threat 17654 | -5/Factory | Allies destroyed B-75 Beast 17731 | -5/Factory | Lost 4 allies 17732 | -5/Factory | Identified exit to Garrison 17759 | -5/Factory | Entered Garrison 17759 | -5/Garrison | Accompanied by 13 allies 17789 | -5/Garrison | Triggered checkpoint 17818 | -5/Garrison | Garrison Relay disabled 17822 | -5/Garrison | Garrison Relay disabled 17886 | -5/Garrison | Lost 6 allies 18093 | -5/Garrison | Triggered checkpoint 18133 | -5/Garrison | Lost 7 allies 18148 | -5/Garrison | Discovered new exit (range 9) 18179 | -5/Garrison | Triggered checkpoint 18188 | -5/Garrison | Garrison Relay disabled 18318 | -5/Garrison | Discovered new exit (range 12) 18339 | -5/Garrison | Triggered checkpoint 18353 | -5/Garrison | Discovered new exit (range 5) 18419 | -5/Garrison | Triggered checkpoint 18439 | -5/Garrison | Garrison Relay disabled 18593 | -5/Garrison | Triggered checkpoint 18666 | -5/Garrison | Expanded RIF knowledge: Autoassimilate 18699 | -5/Garrison | Discovered new exit (range 11) 18709 | -5/Garrison | Triggered checkpoint 18728 | -5/Garrison | Garrison Relay disabled 18879 | -5/Garrison | Entered Extension 18879 | -5/Extension | Accompanied by 16 allies 19047 | -5/Extension | Rescued A7 19430 | -5/Extension | Build established: Commander-Mutant 19762 | -5/Extension | Spotted B-75 Beast 19769 | -5/Extension | Allies destroyed B-75 Beast 19783 | -5/Extension | Spotted B-75 Beast 19802 | -5/Extension | Allies destroyed B-75 Beast 19844 | -5/Extension | Lost 3 allies 19895 | -5/Extension | Rescued a captive Derelict 19949 | -5/Extension | Rescued a captive Derelict 20040 | -5/Extension | Rescued a captive Derelict 20041 | -5/Extension | Rescued a captive Derelict 20197 | -5/Extension | Rescued a captive Derelict 20273 | -5/Extension | Discovered new exit (range 10) 20275 | -5/Extension | Discovered new exit (range 6) 20379 | -5/Extension | First assault squad dispatched 20381 | -5/Extension | Entered Cetus 20381 | -5/Cetus | Accompanied by 31 allies (A7) 20381 | -5/Cetus | 1 ally did not survive the journey 20386 | -5/Cetus | Acquired a Cetus Manufacturing Module code from A7 20396 | -5/Cetus | Spotted Cetus Guard 20396 | -5/Cetus | Spotted Cetus Guard 20399 | -5/Cetus | Spotted Cetus Guard 20402 | -5/Cetus | Allies destroyed Cetus Guard 20403 | -5/Cetus | Allies destroyed Cetus Guard 20417 | -5/Cetus | Allies destroyed Cetus Guard 20451 | -5/Cetus | Lost 8 allies 20480 | -5/Cetus | Started Cetus Manufacturing Module 20505 | -5/Cetus | Manufactured an Enhanced Grunt 20530 | -5/Cetus | Manufactured an Enhanced Grunt 20555 | -5/Cetus | Manufactured an Enhanced Grunt 20580 | -5/Cetus | Manufactured an Enhanced Grunt 20605 | -5/Cetus | Manufactured an Enhanced Grunt 20662 | -5/Cetus | Discovered new exit (range 15) 20701 | -5/Cetus | Spotted Cetus Guard 20701 | -5/Cetus | Spotted Cetus Guard 20703 | -5/Cetus | Spotted Cetus Guard 20704 | -5/Cetus | Spotted Cetus Guard 20720 | -5/Cetus | Allies destroyed Cetus Guard 20725 | -5/Cetus | Allies destroyed Cetus Guard 20733 | -5/Cetus | Allies destroyed Cetus Guard 20735 | -5/Cetus | Allies destroyed Cetus Guard 20744 | -5/Cetus | Discovered new exit (range 15) 20758 | -5/Cetus | Met Revision 17 20764 | -5/Cetus | Lost 4 allies 20840 | -5/Cetus | Entered Archives 20840 | -5/Archives | Accompanied by 23 allies (A7) 20965 | -5/Archives | Discovered new exit (range 16) 21036 | -5/Archives | Build established: Botlord-Mutant 21781 | -5/Archives | Entered Hub_04(d) 21781 | -5/Hub_04(d) | Accompanied by 21 allies 21947 | -5/Hub_04(d) | Network Hub disabled 21997 | -5/Hub_04(d) | Spotted Lightning 21998 | -5/Hub_04(d) | Spotted Lightning 22023 | -5/Hub_04(d) | Allies destroyed Lightning 22025 | -5/Hub_04(d) | Destroyed Lightning 22055 | -5/Hub_04(d) | Lost 13 allies 22074 | -5/Hub_04(d) | Discovered new exit (range 11) 22203 | -5/Hub_04(d) | Network Hub disabled 22205 | -5/Hub_04(d) | Spotted Lightning 22216 | -5/Hub_04(d) | Spotted Lightning 22218 | -5/Hub_04(d) | Entered Factory 22218 | -4/Factory | Accompanied by 1 ally 22218 | -4/Factory | Evolved 2 slots: Power x1, Utility x1 23281 | -4/Factory | P-70 Sage assimilated allied Sentinel 7b 23296 | -4/Factory | Assimilated ARC 7a with formatsys_deep 23413 | -4/Factory | Lost 3 allies 23748 | -4/Factory | First assault squad dispatched 23762 | -4/Factory | Assimilated ARC 7b with formatsys_deep 23806 | -4/Factory | Sucked down chute 23806 | -4/Factory | Entered Waste 23811 | -4/Waste | 2 allies followed down the chute 23821 | -4/Waste | EMP discharged 23821 | -4/Waste | System corruption reached 10% 23833 | -4/Waste | Lost 4 allies 23867 | -4/Waste | Spotted C-40 Crusher 23883 | -4/Waste | Spotted C-40 Crusher 23893 | -4/Waste | Spotted C-40 Crusher 23899 | -4/Waste | Spotted C-40 Crusher 23911 | -4/Waste | Allies destroyed C-40 Crusher 23915 | -4/Waste | Spotted C-40 Crusher 23921 | -4/Waste | EMP discharged 23932 | -4/Waste | Discovered new exit (range 12) 23956 | -4/Waste | Entered Factory 24612 | -4/Factory | Lost 5 allies 25449 | -4/Factory | Discovered new exit (range 16) 25551 | -4/Factory | System corruption reached 30% 25731 | -4/Factory | Central database locked down 25897 | -4/Factory | Identified exit to Garrison 25897 | -4/Factory | Entered Garrison 25897 | -4/Garrison | Accompanied by 1 ally 25907 | -4/Garrison | Triggered checkpoint 25958 | -4/Garrison | Triggered checkpoint 26242 | -4/Garrison | Garrison Relay disabled 26491 | -4/Garrison | Spotted B-86 Titan 26498 | -4/Garrison | Assimilated Titan 7a with formatsys_high 26511 | -4/Garrison | Triggered checkpoint 26513 | -4/Garrison | Triggered checkpoint 26573 | -4/Garrison | Triggered checkpoint 26585 | -4/Garrison | Triggered checkpoint 26631 | -4/Garrison | Triggered checkpoint 26653 | -4/Garrison | Garrison Relay disabled 26673 | -4/Garrison | Triggered checkpoint 26674 | -4/Garrison | Assimilated ARC 7c with formatsys_deep 26704 | -4/Garrison | Discovered new exit (range 5) 26810 | -4/Garrison | Discovered new exit (range 14) 26983 | -4/Garrison | Expanded RIF knowledge: Threat Obfuscation 27005 | -4/Garrison | Discovered new exit (range 14) 27039 | -4/Garrison | Triggered checkpoint 27070 | -4/Garrison | Garrison Relay disabled 27303 | -4/Garrison | Discovered new exit (range 3) 27339 | -4/Garrison | Triggered checkpoint 27401 | -4/Garrison | Garrison Relay disabled 27455 | -4/Garrison | Triggered checkpoint 27472 | -4/Garrison | Rescued a captive Derelict 27493 | -4/Garrison | Triggered checkpoint 27525 | -4/Garrison | Lost 3 parts (1n1u1w) 27539 | -4/Garrison | Lost 5 allies 27690 | -4/Garrison | Entered Research 27690 | -3/Research | Accompanied by 9 allies 27690 | -3/Research | Evolved 2 slots: Propulsion x2 27890 | -3/Research | Revision forces began assault on 0b10 28027 | -3/Research | Met up with Revision 17++ 28070 | -3/Research | Lost 6 allies 28150 | -3/Research | Found Spectral Analyzer 28193 | -3/Research | Discovered new exit (range 16) 28390 | -3/Research | Research terminal network offline 28564 | -3/Research | Build established: Botlord-Scout 28570 | -3/Research | Lost 6 allies 28605 | -3/Research | Identified exit to Research 28608 | -3/Research | Entered another Research area 28608 | -2/Research | Accompanied by 1 ally 28608 | -2/Research | Evolved 2 slots: Utility x2 28691 | -2/Research | Found Prototype Processor 28691 | -2/Research | Identified Exp. Targeting Computer 28735 | -2/Research | Found Prototype Device 28735 | -2/Research | Identified Beam Splitter 28736 | -2/Research | System corruption reached 10% 28738 | -2/Research | Found Beam Splitter 28916 | -2/Research | Discovered new exit (range 16) 29022 | -2/Research | Spotted B-90 Cyclops 29097 | -2/Research | Identified exit to Quarantine 29097 | -2/Research | Identified exit to Access 29125 | -2/Research | Entered Access 29125 | -1/Access | Evolved 2 slots: Utility x2 29409 | -1/Access | Spotted B-99 Colossus 29502 | -1/Access | Lost 4 allies 29519 | -1/Access | Spotted B-99 Colossus 29834 | -1/Access | Found Prototype Processor 29834 | -1/Access | Identified Exp. Melee Analysis Suite 29955 | -1/Access | Identified exit to Surface 29955 | -1/Access | Identified exit to Command 29959 | -1/Access | Spotted B-99 Colossus 30144 | -1/Access | Lost 3 parts (1p1n1u) 30217 | -1/Access | Spotted B-99 Colossus 30296 | -1/Access | Destroyed 9 combat bots 30401 | -1/Access | Maximum security lockdown engaged 30606 | *** | Escaped! Last Messages --------------- 30600_ C-30 ARC bursts open, deploying its payload. 30600_ G-73 Enforcer unfolds itself. 30600_ B-74 Champion unfolds itself. 30600_ G-73 Enforcer unfolds itself. 30600_ M-36 Artificer unfolds itself. 30600_ Y-72 Warden destroyed. 30600_ B-74 Champion destroyed. 30601_ ALERT: Assault forces dispatched. 30601_ C-30 ARC bursts open, deploying its payload. 30601_ G-73 Enforcer unfolds itself. 30601_ B-74 Champion unfolds itself. 30601_ G-73 Enforcer unfolds itself. 30601_ B-74 Champion unfolds itself. 30601_ I-47 Archangel unfolds itself. 30603_ The unstable cave ceiling collapses. 30606_ Slammed into B-74 Champion. 30606_ Relay Coupler [Sentry] destroyed. 30606_ System corrupted by crushing effect (+3). Map ----- +----------------------------------------------------+ | #?# ## ############% ###### ""T"" ## | | " #?# ##/############ ###### """"" ## | | " ### # """G""" # !###### ## | | "" ########+#### """ """ # ###### ] ## | | " ##?#?### #### # ##########+###### | | ###?##?# #### / | | #####??# #### # | | #??#?#?# #### # ###### ###+###### | | #?##?###+##################+###### ## " | | ##+####### ##### ####### # ## """ | | + ##### ####### # ## """ | | ########## !! ##### ####### # ## " | | #?######?# !! ##### # " # ## | | ###?#???## ! =############# """ # ## | | # ? ? # ############# """ # ## | | #?? ?? #################### " + ## | | # ??? #################### # ## | | # ?? ?? #################### # ########## | | #?? ? #####?####################### ########?# | | # ?? ? ############################# ########## | | #????? ##################### ####### ########## | | # ??? # """" ########## | | # ??? # BB """" % m ########## | | ##??#?+### BB """" #######?## | | ? """" bb ######### | | """" "@ m gb #######? | | """" b" % m ig b # ###?#?# | | """" % %b= g % # | | ### ### BB """" ! %g g%=% # ? | | ??? ### BB """" ! *%%! ? | | ??# ### """" m% %%%%## ##? | | ???? ####################### # /# ! ### | | ????? ########################## #%% # ?#?# | | ?????? ########################## = [ ?#?# | | ?#???? + ? # ### % #% #?# | | ???????#? # ##### ## ??# | | ??? ?? ?? w ##### ###?? ### | | ?????????? # ? ####### ## ? ? | | ??????????? # ####### #????????? | | ???????????? ###+#####?########## #????????? | | ?????????????""" # ############## ????????? | | ???????????????" # ? i ?? ????????? | | ????????????????? # ???? ????????? | | ??????????????????? ###+#####????? ?????? ?? | | ????????????????????????? ????????????###????????? | | ????????????????????????????????????????? ???????? | | ?????????????????????????? ?????????????????????#? | | ???????????????????????????????????????????#?????? | | ????????????????????????????????????????????? ???? | | ????????????????????????????????????????? ?? ????? | +----------------------------------------------------+ Best States ------------- Heat Dissipation 65 Energy Generation 45 Energy Capacity 580 Matter Stores 300 Matter Capacity 300 Sight Range 24 Terrain Scan Range 20 Terrain Scan Density 210 Corruption Containment 20 Armor Coverage 600 Resistance: TH 75 Evasion (%) 59 Melee Accuracy 12 Recoil Reduction 6 Kinecelleration 40 Offensive Hacking 34 Relay Coupler Types 7 Relay Coupler Value 176 Item Schematics ----------------- Cargo Storage Unit | -4/Factory | Hacked Robot Schematics ------------------ B-60 Warrior | -5/Hub_04(d) | Hacked P-60 Hacker | -4/Factory | Hacked Fabricated ------------ Nothing Alien Tech Used ----------------- None Achievements -------------- Exterminator Shutout Challenges ------------ None Game ------ Seed ImpactBorePick Manual? 0 Play Time 04:49:17 Cumulative 389.4 hours Start 2025.03.16 @ 17:17:29 End 2025.03.17 @ 19:44:05 Sessions 5 Manual Loads 0 Difficulty Rogue Special Mode None Game No. 88 Rogue 88 Adventurer 0 Explorer 0 Win Type 0 Total 26 Types 14/1/6/1/0/0/2/1/1 Lore% 85 Gallery% 84 Achievement% 80 Wizard Run 0 Options --------- Layout 1 ASCII 0 Keyboard 0 Movement Mouse Keybinds 0 Fullscreen 1 Font 24/Smallcaps Map View 50x35 Zoom Use 0% Tactical HUD 1 Map Filters NONE Filters NONE Steam 1 RUN: 9e2c0fed-18e3-4454-88de-6d3a1721f8e4